Cogmind - Beta 15 @@@ ROGUE MODE // 2025.05.18 @ 10:03:50 Player: Dosh Result: Escaped! Performance ------------- Evolutions (9) 4500 Regions Visited (32) 6400 Robots Destroyed (365) 1825 Value Destroyed (25101) 25101 Prototype IDs (61) 1220 Alien Tech Used (0) 0 Bonus (22784) 22784 TOTAL SCORE: 61830 Bonus ------- High Alert Combat Kills 2053 Follower Combat Kills 8860 Entered Garrisons 2200 Used RIF Installer 6000 Aligned with FarCom 300 Scanned by Researcher 500 Win 3000 Friendly Fire -129 Cogmind --------- Core Integrity 1584/1600 Matter 293/300 Energy 460/485 System Corruption 13% Temperature Cool (13) Movement Treading (157) Location To Epsilon Eridani Parts ------- > --- POWER (3) -------- Light Antimatter Reactor Reinforced Antimatter Reactor Light Quantum Reactor > --- PROPULSION (7) --- Biometal Medium Treads Armored Heavy Treads Armored Heavy Treads Biometal Heavy Treads > --- UTILITY (13) ----- Experimental Power Amplifier Experimental Cooling System Experimental Cooling System Huge Storage Unit Spectral Analyzer Advanced Powered Armor AEGIS Remote Shield Relay Coupler [NC] (5) Relay Coupler [Grunt] (4) Relay Coupler [Sentry] (17) Relay Coupler [Behemoth] (2) > --- WEAPON (2) ------- Improved Potential Cannon > --- INVENTORY (25) --- Quantum Reactor High-density Centrium Wheel Experimental Cooling System Advanced Energy Well (500) Heavy Reflective Plating Relay Coupler [NC] (29) Relay Coupler [NC] (34) Relay Coupler [NC] (34) Relay Coupler [Grunt] (35) Relay Coupler [Grunt] (22) Relay Coupler [Sentry] (16) Relay Coupler [Hunter] (15) Relay Coupler [Hunter] (17) Relay Coupler [Proto] (9) Relay Coupler [Proto] (9) Compact HERF Cannon Enhanced Nova Cannon Enhanced Nova Cannon Hypervelocity Multirail Hellfire Missile Launcher Advanced Micro-nuke Launcher Advanced Remote Datajack Advanced Remote Datajack Peak State ------------ > --- POWER ------------ Reinforced Antimatter Reactor Light Quantum Reactor Light Quantum Reactor > --- PROPULSION ------- Heavy Treads Biometal Medium Treads Biometal Heavy Treads Biometal Heavy Treads > --- UTILITY ---------- Experimental Power Amplifier Experimental Cooling System Experimental Cooling System Huge Storage Unit Spectral Analyzer Advanced Powered Armor AEGIS Remote Shield Relay Coupler [NC] Relay Coupler [Swarmer] Relay Coupler [Grunt] Relay Coupler [Sentry] Relay Coupler [Hunter] Relay Coupler [Behemoth] > --- WEAPON ----------- Enhanced Nova Cannon Hypervelocity Multirail > --- INVENTORY -------- Light Antimatter Reactor Quantum Reactor High-density Centrium Wheel Experimental Cooling System Advanced Energy Well Relay Coupler [NC] Relay Coupler [NC] Relay Coupler [NC] Relay Coupler [NC] Relay Coupler [Grunt] Relay Coupler [Grunt] Relay Coupler [Sentry] Relay Coupler [Hunter] Relay Coupler [Hunter] Relay Coupler [Proto] Relay Coupler [Proto] Compact HERF Cannon Enhanced Nova Cannon Improved Potential Cannon Hellfire Missile Launcher Advanced Micro-nuke Launcher Advanced Remote Datajack Advanced Remote Datajack [Rating: 194] Favorites ----------- Power Light Quantum Reactor Engine Reinforced Deuterium Engine Power Core Neutrino Core Reactor Light Quantum Reactor Propulsion Heavy Treads Treads Heavy Treads Wheel Wheel Utility Huge Storage Unit Device Advanced Cooling System Storage Huge Storage Unit Processor Spectral Analyzer Hackware Relay Coupler [Grunt] Protection Powered Armor Weapon Heavy Plasma Cannon Energy Gun Medium Laser Energy Cannon Heavy Plasma Cannon Ballistic Gun Assault Rifle Ballistic Cannon Light Cannon Launcher Rocket Launcher Special Weapon Advanced Remote Datajack Slashing Weapon Katana Special Melee Weapon Datajack Build | -11 -10 -10 -10 -9 -8 -8 -8 -8 -7 -7 -7 -7 -7 -7 -6 -6 -6 -6 -6 -6 -5 -5 -4 -4 -3 -3 -2 -2 -2 -2 -2 -1 ------- Run | Yrd Mat Min Exi Min Mat Gar Mat Gar Fac Was Fac Gar Fac Gar Fac Was Fac Gar Fac Gar Fac Gar Fac Gar Res Gar Res Gar Res Tes Gar Acc Slots Evolved 18 | . . . . . 4 . . . 2 . . . . . 2 . . . . . 2 . 2 . 2 . 2 . . . . 2 Power 2 | . . . . . . . . . . . . . . . 1 . . . . . . . . . 1 . . . . . . . Propulsion 5 | . . . . . 1 . . . 1 . . . . . . . . . . . 1 . . . 1 . . . . . . 1 Utility 11 | . . . . . 3 . . . 1 . . . . . 1 . . . . . 1 . 2 . . . 2 . . . . 1 Weapon . | . . . . . . . . . . . . . . . . . . . . . . . . . . . . . . . . . Parts Attached 322 | 6 8 2 . 2 32 17 15 6 . 7 . 16 6 9 1 2 6 9 2 15 34 12 14 10 12 15 3 14 11 14 14 8 Power 48 | 1 1 . . . 4 1 2 . . 1 . . 2 . 1 . . . . 4 5 2 3 1 1 4 1 3 4 3 3 1 Engine 16 | 1 1 . . . 4 . 2 . . . . . 1 . 1 . . . . 1 3 2 . . . . . . . . . . Core 6 | . . . . . . 1 . . . . . . . . . . . . . . 2 . 2 1 . . . . . . . . Reactor 26 | . . . . . . . . . . 1 . . 1 . . . . . . 3 . . 1 . 1 4 1 3 4 3 3 1 Propulsion 51 | 2 2 1 . . 10 4 4 . . 2 . . . . . 1 . 1 . 2 4 1 2 3 6 1 . . . 1 1 3 Treads 44 | 2 . 1 . . 9 4 4 . . 2 . . . . . 1 . 1 . 2 4 1 . 2 6 1 . . . 1 1 2 Leg . | . . . . . . . . . . . . . . . . . . . . . . . . . . . . . . . . . Wheel 7 | . 2 . . . 1 . . . . . . . . . . . . . . . . . 2 1 . . . . . . . 1 Hover . | . . . . . . . . . . . . . . . . . . . . . . . . . . . . . . . . . Flight . | . . . . . . . . . . . . . . . . . . . . . . . . . . . . . . . . . Utility 173 | 1 3 . . . 13 8 8 6 . 4 . 15 4 7 . 1 1 8 2 8 17 9 8 5 2 8 1 9 6 7 10 2 Device 43 | . . . . . 5 4 . . . 1 . 2 3 1 . . 1 . . 4 5 . 3 1 . . 1 2 3 4 3 . Storage 7 | 1 2 . . . 1 1 . . . . . . . . . . . . . . . . . . . . . . . 2 . . Processor 3 | . . . . . . . . . . . . . . . . . . . . . 1 . . . . . . . 1 1 . . Hackware 92 | . . . . . 1 1 7 3 . 1 . 10 1 6 . . . 8 1 4 9 8 3 4 2 7 . 7 1 . 6 2 Protection 28 | . 1 . . . 6 2 1 3 . 2 . 3 . . . 1 . . 1 . 2 1 2 . . 1 . . 1 . 1 . Artifact . | . . . . . . . . . . . . . . . . . . . . . . . . . . . . . . . . . Weapon 50 | 2 2 1 . 2 5 4 1 . . . . 1 . 2 . . 5 . . 1 8 . 1 1 3 2 1 2 1 3 . 2 Energy Gun 3 | 1 . . . . 1 . . . . . . . . . . . . . . . 1 . . . . . . . . . . . Energy Cannon 19 | . . . . . 2 3 . . . . . 1 . 1 . . 2 . . . 3 . . 1 1 1 . 1 1 1 . 1 Ballistic Gun 5 | 1 . . . . 1 . . . . . . . . . . . . . . . 2 . . . . . . . . . . 1 Ballistic Cannon 2 | . 1 1 . . . . . . . . . . . . . . . . . . . . . . . . . . . . . . Launcher 8 | . . . . 2 1 . . . . . . . . . . . 2 . . . 1 . . . 1 . . . . 1 . . Special Weapon 11 | . . . . . . . 1 . . . . . . 1 . . 1 . . 1 1 . 1 . 1 1 1 1 . 1 . . Impact Weapon . | . . . . . . . . . . . . . . . . . . . . . . . . . . . . . . . . . Slashing Weapon 1 | . . . . . . 1 . . . . . . . . . . . . . . . . . . . . . . . . . . Piercing Weapon . | . . . . . . . . . . . . . . . . . . . . . . . . . . . . . . . . . Special Melee Weapon 1 | . 1 . . . . . . . . . . . . . . . . . . . . . . . . . . . . . . . Unidentified Prototypes 15 | . . . . . . . . . . . . . 1 . . . 2 . . . 5 . . . 1 . . . . 5 . 1 Corrupted Parts 1 | . . . . . . . . . . . . . . . . . . . . . 1 . . . . . . . . . . . System Corruption 1 | . . . . . . . . . . . . . . . . . . . . . 1 . . . . . . . . . . . Parts Lost 78 | . 4 3 . . 10 1 3 . . . . . . . . . . . . 5 22 . 4 7 4 . . 3 1 . 8 3 Power 19 | . 1 . . . 3 . 1 . . . . . . . . . . . . 2 5 . . 2 1 . . 1 . . 2 1 Propulsion 18 | . 2 1 . . 2 1 . . . . . . . . . . . . . 1 4 . 1 3 2 . . . . . 1 . Utility 29 | . . 1 . . 3 . 2 . . . . . . . . . . . . 1 8 . 3 1 . . . 2 1 . 5 2 Weapon 12 | . 1 1 . . 2 . . . . . . . . . . . . . . 1 5 . . 1 1 . . . . . . . Highest Loss Streak 17 | . 2 2 . . 3 1 3 . . . . . . . . . . . . 3 17 . 4 4 3 . . 1 1 . 4 2 To Critical Strikes 1 | . . . . . . . . . . . . . . . . . . . . . 1 . . . . . . . . . . . Average Backups 20 | . 3 7 9 10 15 19 23 23 24 23 24 21 23 23 22 24 22 23 23 23 19 21 24 24 24 23 22 22 22 22 19 20 Power 1 | . . 1 1 1 . 1 2 2 2 . . . 1 2 1 1 1 1 1 1 1 1 1 1 . . 1 1 2 3 2 1 Propulsion 1 | . . . . . 2 3 3 4 1 . 1 1 1 1 1 1 1 2 2 1 . . . . . 1 1 1 1 1 1 . Utility 11 | . 1 2 3 3 4 7 9 10 13 16 17 15 16 16 16 17 13 14 15 15 13 13 15 17 18 14 14 15 14 10 9 11 Weapon 4 | . . 1 4 5 6 7 7 6 6 6 6 4 4 3 4 4 4 4 3 2 2 4 4 3 4 4 4 3 4 4 5 5 Tool/Special . | . . . . . . . . . . . . . . . . . . . . . . . . . . . . . . . . . Unused Backups 69 | . . . . . 6 3 2 2 . 5 . 2 2 4 . 2 . 2 1 4 2 1 2 1 2 6 1 3 . 1 . 15 Power 5 | . . . . . . . 1 . . 2 . . 1 . . . . . . . 1 . . . . . . . . . . . Propulsion 9 | . . . . . 2 1 . . . 1 . . . . . . . . . 1 . . 1 . . 3 . . . . . . Utility 42 | . . . . . 2 1 . 2 . 1 . 1 1 4 . 2 . 2 1 3 1 1 . 1 1 2 1 3 . 1 . 11 Weapon 10 | . . . . . 2 1 1 . . 1 . 1 . . . . . . . . . . . . 1 1 . . . . . 2 Tool/Special 3 | . . . . . . . . . . . . . . . . . . . . . . . 1 . . . . . . . . 2 Average Slot Usage (%) 87 | . 94 90 61 75 90 99 97 96 99 75 61 77 82 81 85 68 85 85 82 85 79 88 91 97 95 90 89 89 89 84 82 86 Engine 4 | . 13 14 14 14 8 8 6 9 7 3 . . . . 6 6 6 6 6 4 1 11 1 2 4 . . . . . . . Reactor 5 | . . . . . . . . . . 2 7 7 6 7 6 6 6 6 6 8 6 . 3 2 3 9 13 13 13 13 12 12 Treads 18 | . 17 7 14 14 22 26 26 27 30 27 15 15 15 15 13 13 13 13 13 13 16 21 16 15 23 19 17 17 17 14 12 16 Wheel 1 | . 8 19 14 14 2 . . . . . . . . . . . . . . . . . 5 8 . . . . . . . . Device 10 | . . . . . 13 18 6 . 6 6 7 8 9 9 12 1 12 12 6 11 13 3 8 12 12 9 12 12 14 15 18 15 Storage 6 | . 14 14 14 14 9 9 9 9 7 7 7 7 7 7 6 6 6 6 6 6 4 5 5 5 4 4 4 4 4 4 4 4 Processor 1 | . . . . . . . . . . . . . . . . . . . . . 1 5 5 5 4 4 4 4 4 4 4 4 Hackware 15 | . . . . . 2 . 15 20 15 4 . 12 23 24 20 14 13 19 19 18 16 21 21 23 20 23 26 24 24 18 15 23 Protection 7 | . 10 6 . . 13 17 12 12 15 7 7 9 3 1 5 6 12 6 9 9 3 4 6 5 4 3 3 3 2 5 5 4 Energy Cannon 7 | . . . . . 15 17 11 6 7 7 7 2 7 9 6 6 10 12 6 9 6 5 7 7 4 4 4 4 4 4 4 5 Special Weapon 3 | . . . . . . . 6 7 5 7 7 6 7 5 6 6 1 . 5 2 2 4 2 2 3 3 3 3 4 3 4 2 Peak Build Rating 194 | 6 7 8 6 9 30 45 43 45 53 78 78 81 70 71 79 86 81 83 85 98 111 97 107 106 134 154 158 160 165 179 189 194 Average Rating 86 | 4 6 6 5 8 25 39 39 41 52 62 78 70 67 68 78 84 78 79 79 86 93 89 97 100 126 147 155 156 160 170 180 188 On Entrance 78 | . 6 7 6 6 9 26 43 35 43 53 78 78 70 68 67 79 86 79 76 85 96 83 94 105 102 131 147 158 153 156 177 179 Naked Turns . | . . . . . . . . . . . . . . . . . . . . . . . . . . . . . . . . . Heaviest Build 211 | 12 37 31 31 32 82 125 122 125 125 156 156 156 123 123 137 166 156 156 156 156 158 134 148 148 160 175 183 191 200 199 211 197 Greatest Support 255 | 40 40 26 16 16 60 70 70 70 100 140 140 140 140 140 140 140 140 145 145 145 197 155 155 103 198 215 215 215 215 220 225 255 Greatest Overweight (x) 13 | . 3 1 1 1 4 1 1 1 1 2 1 1 . . . 1 1 1 1 1 1 . 13 12 1 . . . . . 1 5 Average Overweight (x) . | . . 1 1 1 1 1 1 1 1 1 1 . . . . . . . . . . . 3 4 . . . . . . . . Largest Inventory Capacity 25 | 8 15 15 15 15 20 25 25 25 25 25 25 25 25 25 25 25 25 25 25 25 25 25 25 25 25 25 25 25 25 25 25 25 Average Capacity 23 | 7 13 15 15 15 17 20 25 25 25 25 25 25 25 25 25 25 25 25 25 25 24 25 25 25 25 25 25 25 25 25 25 25 Most Carried 25 | 1 7 8 11 12 20 25 25 25 25 25 25 25 25 25 25 25 25 25 25 25 25 25 25 25 25 25 25 25 25 25 25 24 Average Carried 21 | . 3 7 9 10 15 19 23 24 24 24 25 22 24 24 23 25 23 24 24 24 20 21 24 24 24 24 24 24 24 23 21 21 Final Capacity 25 | 8 15 15 15 15 20 25 25 25 25 25 25 25 25 25 25 25 25 25 25 25 25 25 25 25 25 25 25 25 25 25 25 25 Final Carried 25 | 1 7 7 11 10 16 25 25 25 25 25 25 25 25 25 25 25 24 25 25 25 14 25 25 25 24 24 25 25 23 25 22 24 Class Distribution -------------------- 56% | Botlord-Mutant 19% | Bothacker-Mutant 13% | Mutant 10% | Scavenger-Mutant Dominant Class ---------------- Mutant | -10/Materials Mutant | -10/Mines Mutant | -10/Exiles Mutant | -9/Mines Scavenger-Mutant | -8/Materials Scavenger-Mutant | -8/Garrison Bothacker-Mutant | -8/Materials Bothacker-Mutant | -8/Garrison Bothacker-Mutant | -7/Factory Bothacker-Mutant | -7/Waste Bothacker-Mutant | -7/Factory Bothacker-Mutant | -7/Garrison Bothacker-Mutant | -7/Factory Bothacker-Mutant | -7/Garrison Botlord-Mutant | -6/Factory Botlord-Mutant | -6/Waste Botlord-Mutant | -6/Factory Botlord-Mutant | -6/Garrison Botlord-Mutant | -6/Factory Botlord-Mutant | -6/Garrison Botlord-Mutant | -5/Factory Botlord-Mutant | -5/Garrison Botlord-Mutant | -4/Factory Botlord-Mutant | -4/Garrison Botlord-Mutant | -3/Research Botlord-Mutant | -3/Garrison Botlord-Mutant | -2/Research Botlord-Mutant | -2/Garrison Botlord-Mutant | -2/Research Botlord-Mutant | -2/Testing Botlord-Mutant | -2/Garrison Botlord-Mutant | -1/Access Resources | -11 -10 -10 -10 -9 -8 -8 -8 -8 -7 -7 -7 -7 -7 -7 -6 -6 -6 -6 -6 -6 -5 -5 -4 -4 -3 -3 -2 -2 -2 -2 -2 -1 ----------- Run | Yrd Mat Min Exi Min Mat Gar Mat Gar Fac Was Fac Gar Fac Gar Fac Was Fac Gar Fac Gar Fac Gar Fac Gar Res Gar Res Gar Res Tes Gar Acc Matter Collected 11069 | 203 430 166 . . 776 248 477 300 107 156 . 432 128 269 . 222 222 455 . 831 792 496 361 162 307 604 88 519 502 672 605 539 Remotely . | . . . . . . . . . . . . . . . . . . . . . . . . . . . . . . . . . Salvage Created 17534 | . 1039 279 . . 1888 1478 814 85 1 645 . 266 127 82 . 476 250 646 . 902 1692 117 671 196 654 768 . 664 214 1246 1331 1003 Parts 855 | . 72 12 . . 104 87 37 17 . 9 . 16 8 6 . 2 20 31 . 48 92 1 28 3 25 26 . 37 10 67 45 52 Haulers Intercepted 7 | . 1 . . . 4 . 1 . . . . . . . . . . . . . 1 . . . . . . . . . . . Recyclers Shooed 17 | . 1 2 . . 2 . 1 . . . . . 1 . . . . . . . 3 . 2 . 3 . . . 1 . . 1 Parts Field Recycled . | . . . . . . . . . . . . . . . . . . . . . . . . . . . . . . . . . Retrieved Matter . | . . . . . . . . . . . . . . . . . . . . . . . . . . . . . . . . . Parts Self-Destructed . | . . . . . . . . . . . . . . . . . . . . . . . . . . . . . . . . . Prevented . | . . . . . . . . . . . . . . . . . . . . . . . . . . . . . . . . . Kills | -11 -10 -10 -10 -9 -8 -8 -8 -8 -7 -7 -7 -7 -7 -7 -6 -6 -6 -6 -6 -6 -5 -5 -4 -4 -3 -3 -2 -2 -2 -2 -2 -1 ------- Run | Yrd Mat Min Exi Min Mat Gar Mat Gar Fac Was Fac Gar Fac Gar Fac Was Fac Gar Fac Gar Fac Gar Fac Gar Res Gar Res Gar Res Tes Gar Acc Combat Hostiles Destroyed 292 | . 25 7 . . 37 32 15 10 . 2 . 6 3 2 . 2 4 16 . 23 21 2 4 4 7 13 . 9 3 16 17 12 Melee 3 | . . . . . . . . . . . . 3 . . . . . . . . . . . . . . . . . . . . Guns 28 | . 19 2 . . . . . . . . . . . . . . . . . . 4 . . . . . . . . . . 3 Cannons 201 | . 6 5 . . 20 29 10 1 . 1 . 3 3 1 . 2 3 11 . 19 16 2 4 4 6 12 . 9 2 11 13 8 AOE 38 | . . . . . 15 . 4 9 . . . . . . . . . 4 . 4 1 . . . . 1 . . . . . . Classes Destroyed 26 | . 7 1 . . 6 2 . . . 1 . . . . . . . 2 . . . . . 1 . . . . 1 5 . . Worker 18 | . 3 . . . 2 . 1 . 1 . . . . . . . . . . . 6 . . . . . . . 1 1 . 3 Builder 20 | . . 1 . . 5 . 1 . . . . . . . . . 1 . . . 3 . 2 . . . . . . 5 . 2 Tunneler 1 | . . . . . . . . . . . . . . . . . . . . . . . . . . . . . 1 . . . Hauler 7 | . 1 . . . 4 . 1 . . . . . . . . . . . . . 1 . . . . . . . . . . . Recycler 15 | . 2 1 . . 4 . 2 . . . . . . . . . . . . . 2 . 3 . 1 . . . . . . . Mechanic 2 | . . . . . 1 . . . . . . . . . . . . . . . . . . . . . . . . 1 . . Operator 3 | . 1 . . . 2 . . . . . . . . . . . . . . . . . . . . . . . . . . . Watcher 10 | . 3 . . . 4 . 2 . . . . . . 1 . . . . . . . . . . . . . . . . . . Swarmer 53 | . 8 3 . . 9 6 . 8 . . . . . . . . . 4 . 8 2 . . . . 3 . . . . 2 . Cutter 3 | . . . . . . . . . . . . . . . . . . 2 . 1 . . . . . . . . . . . . Grunt 96 | . 17 4 . . 16 10 8 1 . . . 5 . . . . . 8 . 5 . 2 1 . 4 6 . . 1 . 7 1 Brawler 3 | . . . . . 1 2 . . . . . . . . . . . . . . . . . . . . . . . . . . Duelist 8 | . . . . . 2 . 3 . . . . . . . . . 1 . . 2 . . . . . . . . . . . . Protector 2 | . . . . . 1 . 1 . . . . . . . . . . . . . . . . . . . . . . . . . Researcher 1 | . . . . . . . . . . . . . . . . . . . . . . . . . . . . . . 1 . . Sentry 22 | . . . . . 7 9 2 . . . . . . . . . . 1 . . 1 . . . . . . 2 . . . . Specialist 7 | . . . . . . . . . . . . . . . . . . 1 . 2 4 . . . . . . . . . . . Hunter 24 | . . . . . 1 . 1 . . . . 1 1 . . . . . . 3 6 . . . . . . 1 . 4 4 2 Programmer 53 | . . . . . . 3 . 1 . . . . 2 2 . . 2 . . 2 8 . 3 . 2 4 . 6 2 6 3 7 Heavy 1 | . . . . . . . . . . . . . . . . . . . . . . . . . . . . . . 1 . . Q-Series 2 | . . . . . . . . . . . . . . . . . . . . . . . . . . . . . . 2 . . Behemoth 7 | . . . . . . 2 . . . . . . . . . . 1 . . . . . . . 1 . . . . . 1 2 Compactor 4 | . . . . . . . . . . 2 . . . . . 2 . . . . . . . . . . . . . . . . Striker 1 | . . . . . . . . . . . . . . . . . . . . . . . . . . . . . . 1 . . Alpha 7 1 | . . . . . . . . . . . . . . . . . . . . . . . . . . . . . . 1 . . Protovariant P 1 | . . . . . . . . . . . . . . . . . . . . . . . . . . . . . . 1 . . Assembled 4 | . . . . . . . . . . . . . . . . . . . . . . . . 4 . . . . . . . . Best Kill Streak 11 | . 9 3 . . 7 4 9 4 1 1 . 2 1 2 . 1 2 6 . 4 11 1 4 3 2 3 . 3 1 3 6 5 Combat Bots Only 6 | . 6 3 . . 6 4 5 4 . 1 . 2 1 2 . 1 1 6 . 4 4 1 2 3 2 3 . 3 1 3 6 4 Max Kills in Single Turn 4 | . 2 2 . . 3 1 2 3 1 1 . 1 1 1 . 1 1 3 . 2 4 1 1 2 1 1 . 2 1 1 1 3 Gunslinging . | . . . . . . . . . . . . . . . . . . . . . . . . . . . . . . . . . Exploded 3 | . . . . . 3 . 2 3 . . . . . . . . . 3 . 2 1 . . . . 1 . . . . . . Melee 1 | . . . . . . . . . . . . 1 . . . . . . . . . . . . . . . . . . . . Uniques/NPCs Destroyed . | . . . . . . . . . . . . . . . . . . . . . . . . . . . . . . . . . Combat | -11 -10 -10 -10 -9 -8 -8 -8 -8 -7 -7 -7 -7 -7 -7 -6 -6 -6 -6 -6 -6 -5 -5 -4 -4 -3 -3 -2 -2 -2 -2 -2 -1 -------- Run | Yrd Mat Min Exi Min Mat Gar Mat Gar Fac Was Fac Gar Fac Gar Fac Was Fac Gar Fac Gar Fac Gar Fac Gar Res Gar Res Gar Res Tes Gar Acc Hostile Shots Fired 2477 | . 105 46 . . 190 111 57 24 . . . 115 20 87 . . 26 126 . 209 424 15 82 31 80 110 4 70 64 152 177 152 Missed 706 | . 36 11 . . 47 29 14 6 . . . 47 8 31 . . 6 54 . 58 105 6 29 5 22 39 . 22 16 30 49 36 Hits 1771 | . 69 35 . . 143 82 43 18 . . . 68 12 56 . . 20 72 . 151 319 9 53 26 58 71 4 48 48 122 128 116 Melee 24 | . . . . . . . 4 . . . . . . . . . 4 4 . 6 . . . 4 . . . . 2 . . . Projectile 1747 | . 69 35 . . 143 82 39 18 . . . 68 12 56 . . 16 68 . 145 319 9 53 22 58 71 4 48 46 122 128 116 AOE 9 | . . . . . . . . . . . . . . . . . . 2 . 2 1 . 1 . . . . . 3 . . . Critical Strikes 75 | . . . . . 8 3 4 . . . . . . 1 . . . 5 . 4 8 . 1 . 2 5 . 6 4 10 7 7 Actively Blocked 2 | . . . . . . . . . . . . . . . . . . . . . . . 1 . . 1 . . . . . . Part Disruptions 12 | . . . . . . . . . . . . . . . . . . 1 . 5 . . . 1 . . . . 2 2 . 1 Damage Taken 26377 | . 676 346 . . 2311 1043 918 208 . 16 . 623 173 657 . 31 374 550 . 2053 5068 159 1027 560 523 766 44 767 1004 2880 2203 1397 Core 2339 | . 102 64 . . 232 90 103 63 . . . 13 7 49 . 3 39 37 . 119 957 . 89 43 43 50 . 25 49 98 48 16 Absorbed by Shields 8455 | . . . . . 68 153 . . . . . 77 70 244 . 11 186 542 . 368 716 . . 190 549 800 45 683 487 831 1196 1239 Reduced by Siege Mode 620 | . . . . . . . . . . . . . . . . . 9 . . 6 184 . . . . . . 13 . 149 160 99 Redirected to Shielding 212 | . 27 25 . . . . . . . . . . . . . . . . . . 42 . 33 33 32 20 . . . . . . Ignored by Resistances 22 | . . . . . . . . . . . . . . . . . . . . . . 12 10 . . . . . . . . . Regen/Repaired (Parts) 4142 | . . . . . 121 . 456 . . . . 12 7 44 . . 128 . . . 345 . . . . 170 30 328 496 1519 . 486 Core Remaining (%) 67 | 100 . . . 33 . . . 11 . . . . . 90 . . . . . 76 . 4 . 88 . 92 . . . . 84 99 Volleys Fired 1842 | . 96 25 . . 112 102 86 24 7 50 . 42 18 52 4 37 21 66 10 98 119 77 50 37 61 96 12 70 64 191 148 67 Largest 2 | . 2 2 . . 2 2 2 2 1 1 . 1 1 2 1 1 2 2 1 2 2 2 2 2 2 2 2 2 1 2 1 2 Hottest 240 | . 80 80 . . 150 165 165 90 90 90 . 120 90 180 90 90 180 180 90 180 180 80 80 80 80 225 145 160 120 214 120 240 Shots Fired 2405 | . 191 50 . . 202 148 106 26 7 53 . 43 19 63 4 37 32 101 10 131 167 82 77 64 74 115 19 87 64 198 144 91 Gun 237 | . 154 23 . . 8 . . . . . . . . . . . . . . . 39 . . . . . . . . . . 13 Cannon 1691 | . 37 27 . . 172 148 69 8 4 45 . 21 13 43 4 30 22 79 1 108 97 47 61 59 61 87 15 51 31 175 119 57 Launcher 54 | . . . . . 22 . 7 12 . . . . . . . . . 2 . 10 1 . . . . . . . . . . . Special 423 | . . . . . . . 30 6 3 8 . 22 6 20 . 7 10 20 9 13 30 35 16 5 13 28 4 36 33 23 25 21 Kinetic 201 | . 95 27 . . 37 . . . . . . . . . . . . . . . 29 . . . . . . . . . . 13 Thermal 1688 | . 96 23 . . 142 148 69 8 4 45 . 21 13 43 4 30 22 79 1 108 107 47 61 59 61 87 15 51 31 159 97 57 Explosive 54 | . . . . . 22 . 7 12 . . . . . . . . . 2 . 10 1 . . . . . . . . . . . Electromagnetic 39 | . . . . . 1 . . . . . . . . . . . . . . . . . . . . . . . . 16 22 . Robot Hit Streak 20 | . 8 7 . . 18 20 13 7 5 13 . 19 5 5 . 8 9 10 12 9 9 7 10 14 16 18 5 8 8 18 15 16 Robot Miss Streak 7 | . 4 4 . . 2 2 3 1 1 2 . 1 2 2 . 4 2 3 1 3 4 2 6 5 4 3 1 2 2 6 2 7 Penetration Max 3 | . . . . . . . . . . . . . . . . . . . . . 3 . . . . . . . . . . 2 Secondary Targets 4 | . 4 . . . . . . . . . . . . . . . . . . . . . . . . . . . . . . . Max Gunslinging Chain 1 | . 1 . . . . . . . . . . . . . . . . . . . . . . . . . . . . . . . Capacitor 271 | . . . . . . . . . . . . . . . . . . . . . . . . . . . . . . 157 114 . Shots Hit Robots 1380 | . 109 28 . . 142 59 61 6 4 43 . 31 13 23 . 27 22 40 7 67 109 28 42 26 42 57 13 45 42 131 103 60 Core Hits 510 | 1 51 14 . . 87 35 32 11 1 6 . 6 3 2 . 4 4 23 . 32 43 2 12 7 12 18 1 14 6 28 28 27 Critical Kills 27 | . . . . . 1 2 1 . . 1 . . . 1 . . 1 1 . . 5 . 1 . 1 . . . 1 6 1 4 Critical Parts Destroyed 11 | . . . . . 1 . . . . . . . . . . . . . . . 6 . . . . . . . . . . 4 Critical Strikes 51 | . 6 3 . . 4 2 1 . . 1 . 1 . 1 . . 1 1 . . 11 . 1 . 1 . . . 1 7 1 8 Burn 6 | . 5 1 . . . . . . . . . . . . . . . . . . . . . . . . . . . . . . Meltdown 20 | . . . . . 1 2 1 . . 1 . . . 1 . . 1 1 . . 1 . 1 . 1 . . . 1 6 1 1 Destroy 18 | . . . . . 1 . . . . . . . . . . . . . . . 10 . . . . . . . . . . 7 Blast 5 | . 1 2 . . 2 . . . . . . . . . . . . . . . . . . . . . . . . . . . Corrupt 1 | . . . . . . . . . . . . . . . . . . . . . . . . . . . . . . 1 . . Sever 1 | . . . . . . . . . . . . 1 . . . . . . . . . . . . . . . . . . . . Melee Attacks 41 | . . . . . . 3 2 3 . . . 33 . . . . . . . . . . . . . . . . . . . . Impact . | . . . . . . . . . . . . . . . . . . . . . . . . . . . . . . . . . Slashing 41 | . . . . . . 3 2 3 . . . 33 . . . . . . . . . . . . . . . . . . . . Piercing . | . . . . . . . . . . . . . . . . . . . . . . . . . . . . . . . . . Sneak Attacks 1 | . . . . . . . 1 . . . . . . . . . . . . . . . . . . . . . . . . . Combat Hostiles . | . . . . . . . . . . . . . . . . . . . . . . . . . . . . . . . . . Follow-up Attacks . | . . . . . . . . . . . . . . . . . . . . . . . . . . . . . . . . . Damage Inflicted 44823 | 3 1498 504 . . 5339 3028 2005 797 73 1252 . 675 365 522 . 862 562 1376 . 2994 3462 215 1288 900 1356 1485 393 1122 1053 4998 4071 2625 Guns 1945 | . 1151 167 . . 64 . . . . . . . . . . . . . . . 414 . . . . . . . . . . 149 Cannons 35727 | . 337 325 . . 3011 3011 1080 31 64 1252 . 342 351 518 . 862 562 869 . 2085 2490 215 1288 900 1346 1485 393 1122 904 4865 4010 2009 Explosions 6013 | . . . . . 2223 . 829 766 . . . . . . . . . 507 . 880 412 . . . . . . . . . . 396 Melee 401 | . . . . . . . 68 . . . . 333 . . . . . . . . . . . . . . . . . . . . Ramming 737 | 3 10 12 . . 41 17 28 . 9 . . . 14 4 . . . . . 29 146 . . . 10 . . . 149 133 61 71 Kinetic 1917 | . 769 325 . . 441 . . . . . . . . . . . . . . . 233 . . . . . . . . . . 149 Thermal 35174 | . 719 167 . . 2616 3011 1080 31 64 1252 . 342 351 518 . 862 562 869 . 2085 2704 215 1288 900 1346 1485 393 1122 904 4484 3399 2405 Explosive 5584 | . . . . . 2223 . 829 766 . . . . . . . . . 507 . 880 379 . . . . . . . . . . . Electromagnetic 1010 | . . . . . 18 . . . . . . . . . . . . . . . . . . . . . . . . 381 611 . Impact . | . . . . . . . . . . . . . . . . . . . . . . . . . . . . . . . . . Slashing 401 | . . . . . . . 68 . . . . 333 . . . . . . . . . . . . . . . . . . . . Piercing . | . . . . . . . . . . . . . . . . . . . . . . . . . . . . . . . . . Highest Corruption 27 | . 3 3 3 3 . 1 1 2 . 7 7 7 7 4 . 7 7 7 7 11 9 9 1 1 . 10 . 3 6 19 27 13 Average Corruption 6 | . 2 3 3 3 . 1 1 1 . 7 7 7 5 3 . 6 7 7 7 9 5 9 1 1 . 9 . 2 3 10 24 8 Corruption Purged 14 | . . . . . . . . . . . . . 7 . . . . . . . 4 . . . . . . . 3 . . . Corruption Blocked . | . . . . . . . . . . . . . . . . . . . . . . . . . . . . . . . . . Effects 633 | . 1 13 4 7 . 3 14 10 . 18 3 35 9 19 . 11 34 50 16 61 27 63 3 7 . 37 . 15 18 70 59 26 Message Errors 140 | . 1 2 1 2 . 1 4 . . 4 2 9 2 7 . 1 7 10 5 10 4 19 . 2 . 12 . 1 6 12 10 6 Matter Fused 166 | . . 5 2 2 . 1 2 3 . 2 . 10 3 1 . 3 7 15 1 20 7 22 . 2 . 10 . 3 5 16 16 8 Heat Flow Errors 76 | . . 2 . . . . 3 1 . 5 1 4 . 1 . 1 1 5 . 8 5 2 2 1 . 5 . 3 1 13 10 2 Energy Discharges 73 | . . 1 . 1 . 1 . 2 . . . 4 2 2 . 1 8 7 2 9 2 7 . . . 1 . 5 2 7 6 3 Parts Rejected 10 | . . . . . . . . . . 1 . 2 . 1 . 1 . . . 1 1 . . . . . . . . 1 2 . Parts Fused 6 | . . . . . . . . 1 . . . . . . . 1 1 1 1 . . 1 . . . . . . . . . . Data Loss (minor) 76 | . . 1 1 1 . . 3 2 . 1 . 3 . 5 . 2 5 7 3 7 3 6 1 1 . 1 . 2 2 9 5 5 Data Loss (major) 28 | . . 2 . 1 . . . . . 1 . 1 1 . . 1 2 3 2 1 . 1 . 1 . 4 . . 2 2 3 . Misfires 30 | . . . . . . . 1 . . 3 . 1 1 2 . . 2 2 . 1 4 2 . . . 1 . 1 . 8 1 . Alerts 14 | . . . . . . . 1 1 . 1 . 1 . . . . 1 . 2 1 . 2 . . . 2 . . . . 1 1 Misdirections 1 | . . . . . . . . . . . . . . . . . . . . . . . . . . 1 . . . . . . Weapon Failures 13 | . . . . . . . . . . . . . . . . . . . . 3 1 1 . . . . . . . 2 5 1 Overload Shots . | . . . . . . . . . . . . . . . . . . . . . . . . . . . . . . . . . Overflow Damage 1620 | . . . . . 121 53 38 . . . . 34 5 34 . . 46 76 . 118 300 59 60 73 22 29 . 33 30 304 169 16 Projectiles 1218 | . . . . . 46 53 5 . . . . 34 5 34 . . 46 27 . 25 230 59 60 73 22 29 . 33 . 252 169 16 Explosions 277 | . . . . . 75 . . . . . . . . . . . . 49 . 93 60 . . . . . . . . . . . Melee 125 | . . . . . . . 33 . . . . . . . . . . . . . 10 . . . . . . . 30 52 . . Knockbacks 21 | . 4 . . . 9 . . . . . . . . . . . . . . . 2 . . . . . . . 2 2 2 . Impact 8 | . . . . . . . . . . . . . . . . . . . . . 2 . . . . . . . 2 2 2 . Kinetic 10 | . 3 . . . 7 . . . . . . . . . . . . . . . . . . . . . . . . . . . Secondary 3 | . 1 . . . 2 . . . . . . . . . . . . . . . . . . . . . . . . . . . Self-Inflicted Damage 446 | . . 6 . . 248 . 145 . . . . . . . . . . . . . 47 . . . . . . . . . . . Shots 11 | . . . . . 7 . 3 . . . . . . . . . . . . . 1 . . . . . . . . . . . Rammed 55 | 1 1 1 . . 7 4 3 . . . . . 1 . . . . . . 1 9 . . . 3 . . . 9 5 7 3 Targets Rammed 63 | 1 3 1 . . 7 4 4 . 1 . . . 1 1 . . . . . 1 10 . . . 3 . . . 10 5 7 4 Kicked . | . . . . . . . . . . . . . . . . . . . . . . . . . . . . . . . . . Crushed 8 | . 2 . . . . . 1 . 1 . . . . 1 . . . . . . 1 . . . . . . . 1 . . 1 Highest Temperature 517 | . 324 287 . . 517 436 272 249 6 401 257 426 200 224 . 384 294 488 58 240 262 120 161 59 12 198 . 170 187 383 318 159 Average Temperature 89 | . 69 99 . . 121 155 80 62 3 79 138 130 71 37 . 169 97 93 33 54 100 19 88 31 3 85 . 65 62 100 104 28 Received Heat Transfer 4054 | . 246 90 . . 1025 163 342 36 . 9 . 201 22 118 . 4 38 133 . 168 575 48 54 123 54 54 . 73 36 174 260 8 Effects 19 | . . . . . 4 . . . . 1 . 2 . . . 2 . 8 . . . . . . . . . . . 1 1 . Shutdowns 6 | . . . . . 2 . . . . . . 2 . . . . . 1 . . . . . . . . . . . 1 . . Interference 3 | . . . . . . . . . . . . . . . . . . 2 . . . . . . . . . . . . 1 . Matter Decay 2 | . . . . . . . . . . . . . . . . 2 . . . . . . . . . . . . . . . . Short Circuit 3 | . . . . . 1 . . . . 1 . . . . . . . 1 . . . . . . . . . . . . . . Damage (minor) 1 | . . . . . 1 . . . . . . . . . . . . . . . . . . . . . . . . . . . Damage (major) 4 | . . . . . . . . . . . . . . . . . . 4 . . . . . . . . . . . . . . Siege Activations 16 | . . . . . . . . . . . . . . . . . 1 . . 1 1 . . . . . . 1 . 7 2 3 Total Turns 301 | . . . . . . . . . . . . . . . . . 10 . . 6 34 . . . . . . 18 . 113 72 48 Longest Duration 38 | . . . . . . . . . . . . . . . . . 10 . . 6 34 . . . . . . 18 . 32 38 17 Martial Activations . | . . . . . . . . . . . . . . . . . . . . . . . . . . . . . . . . . Shielding Activations . | . . . . . . . . . . . . . . . . . . . . . . . . . . . . . . . . . Robots Disrupted . | . . . . . . . . . . . . . . . . . . . . . . . . . . . . . . . . . Combat Hostiles . | . . . . . . . . . . . . . . . . . . . . . . . . . . . . . . . . . Robots Corrupted 7 | . . . . . . . . . . . . . . . . . . . . . 1 . . . . . . . 1 2 3 . Combat Hostiles 4 | . . . . . . . . . . . . . . . . . . . . . . . . . . . . . . 1 3 . Parts Fried 15 | . . . . . . . . . . . . . . . . . . . . . 2 . . . . . . . 1 7 5 . Impact Corruptions 4 | . . . . . . . . . . . . . . . . . . . . . 1 . . . . . . . 1 2 . . Robots Melted 22 | . . . . . 2 3 1 . . 1 . . . 1 . . 1 1 . . 1 . 1 . 1 . . . 1 6 1 1 Combat Hostiles 18 | . . . . . 2 3 1 . . 1 . . . 1 . . 1 1 . . . . . . 1 . . . 1 4 1 1 Parts Melted 100 | . 4 1 . . 12 13 2 . . 1 . 1 1 5 . . 1 2 . 5 8 1 2 . 2 7 . 2 3 21 3 3 Heat Transferred 42528 | . 2516 555 . . 3848 5223 1657 50 100 1950 . 720 333 546 . 1350 800 1350 . 2969 3346 222 1258 925 1369 1332 370 962 703 3879 2680 1515 Parts Sabotaged . | . . . . . . . . . . . . . . . . . . . . . . . . . . . . . . . . . Parts Stolen . | . . . . . . . . . . . . . . . . . . . . . . . . . . . . . . . . . Parts Stripped . | . . . . . . . . . . . . . . . . . . . . . . . . . . . . . . . . . Power Chain Reactions . | . . . . . . . . . . . . . . . . . . . . . . . . . . . . . . . . . Alert | -11 -10 -10 -10 -9 -8 -8 -8 -8 -7 -7 -7 -7 -7 -7 -6 -6 -6 -6 -6 -6 -5 -5 -4 -4 -3 -3 -2 -2 -2 -2 -2 -1 ------- Run | Yrd Mat Min Exi Min Mat Gar Mat Gar Fac Was Fac Gar Fac Gar Fac Was Fac Gar Fac Gar Fac Gar Fac Gar Res Gar Res Gar Res Tes Gar Acc Maximum Alert Level 4 | . 1 . . . 2 4 3 3 2 . . 3 3 4 3 1 . 4 2 4 2 2 1 . . 2 1 3 3 2 2 1 Low Security (%) 39 | 100 14 100 . 100 49 . 53 28 . 100 100 23 . . . 71 100 5 96 27 98 39 91 100 100 36 71 9 . 17 . 44 Level 1 20 | . 85 . . . 30 1 10 3 56 . . 18 4 . . 28 . 10 1 13 . 38 8 . . 41 28 9 9 67 34 55 Level 2 21 | . . . . . 20 15 22 47 43 . . 42 69 16 . . . 38 2 21 1 22 . . . 21 . 22 55 15 65 . Level 3 13 | . . . . . . 36 13 20 . . . 16 26 18 100 . . 33 . 35 . . . . . . . 58 34 . . . Level 4 5 | . . . . . . 45 . . . . . . . 65 . . . 10 . 2 . . . . . . . . . . . . Level 5 . | . . . . . . . . . . . . . . . . . . . . . . . . . . . . . . . . . High Security . | . . . . . . . . . . . . . . . . . . . . . . . . . . . . . . . . . Max Security . | . . . . . . . . . . . . . . . . . . . . . . . . . . . . . . . . . Peak Influence 1586 | . 321 117 . . 582 1586 826 860 451 114 . 983 861 1576 835 271 77 1214 637 1126 590 468 245 189 105 493 276 1087 979 495 619 371 Initial 827 | . . 117 . . . 350 772 69 451 114 . . 515 582 827 271 . 11 637 15 590 76 245 . 105 15 276 67 611 495 205 371 Average 385 | . 236 44 . . 198 1030 324 491 389 23 . 470 538 1150 807 117 12 662 76 528 81 244 48 114 22 249 174 710 658 265 443 218 Influence Increases 18325 | . 799 180 . . 1332 1246 753 861 7 6 . 1063 819 1144 88 4 188 1303 57 1271 849 532 233 279 184 658 24 1090 1585 856 554 360 Destroy 0b10 Robot/C 7520 | . 500 140 . . 720 640 340 420 . . . 420 280 560 . . 100 620 . 620 440 40 60 . 105 195 . 255 285 345 255 180 Destroy 0b10 Robot/NC 480 | . 50 10 . . 110 . 50 . 5 . . . 45 5 . . 5 . . . 60 . 24 8 4 . . . 48 36 . 20 Destroy Leader 1004 | . 118 30 . . 166 20 90 30 . . . 20 78 40 . . 30 30 . 30 72 . 16 . 16 24 . 32 40 50 32 40 Allied During Kill 1693 | . . . . . . . 20 76 . . . 132 191 256 . . 2 60 . 94 57 12 7 . 23 6 . 281 346 99 16 15 Successful Hack 319 | . 22 . . . 15 . 11 22 . . . . 19 . 58 . . 28 26 6 . 30 6 8 . 12 . 12 12 20 12 . Select Force Hacks 210 | . 60 . . . 60 . 60 . . . . . . . . . . . 30 . . . . . . . . . . . . . Disable Machine 909 | . . . . . 90 75 60 15 . . . 30 165 . 30 . . 15 . . 45 12 72 48 . . 12 . 72 132 12 24 Anti-Garrison Action 3223 | . . . . . . 400 . 200 . . . 400 . 200 . . . 400 . 400 . 314 . 189 . 265 . 152 113 . 190 . Destroy Structure 2424 | . 4 . . . 111 51 77 83 2 6 . 46 41 53 . 4 6 105 1 76 160 109 36 26 36 84 12 358 669 150 37 81 Partial Spotted 27 | . . . . . . . . . . . . . . . . . . 15 . . . . . . . . . . . 12 . . Lose Combat Pursuer 516 | . 45 . . . 60 60 45 15 . . . 15 . 30 . . 45 30 . 45 15 15 12 . . 72 . . . 12 . . Influence Decreases 18102 | . 499 480 . . 793 199 2232 108 539 334 . 80 970 400 889 779 172 105 1249 167 1866 173 701 90 353 185 427 93 1792 1462 209 756 Entered New Map 6706 | . . 183 . . . 189 814 38 409 214 . . 468 250 749 504 . 5 577 7 536 33 223 . 84 5 217 23 476 385 69 248 Time Decay 5959 | . 459 267 . . 563 . 568 . 130 114 . . 482 . 140 235 132 . 99 . 510 . 334 . 190 . 170 . 546 592 . 428 Lost Part 733 | . 40 30 . . 80 10 30 . . . . . . . . . . . . 50 210 . 24 70 39 . . 30 10 . 80 30 Lost Ally 2006 | . . . . . . . 70 70 . 6 . 80 20 150 . 40 40 100 . 110 160 140 120 20 40 180 40 40 260 210 60 50 Purge Threat 2698 | . . . . . 150 . 750 . . . . . . . . . . . 573 . 450 . . . . . . . 500 275 . . Squads Dispatched 77 | . 8 . . . 5 . 5 . 1 . . . 7 . . . 3 . 2 . 9 . 4 . 7 . 1 . 12 11 . 2 Investigation 12 | . 6 . . . 2 . 2 . . . . . . . . . . . 1 . . . . . . . 1 . . . . . Extermination 22 | . . . . . . . . . 1 . . . 2 . . . 2 . . . 5 . 2 . 1 . . . 3 4 . 2 Reinforcement 24 | . 2 . . . . . 2 . . . . . 1 . . . 1 . 1 . 4 . 2 . 2 . . . 5 4 . . Assault 8 | . . . . . 2 . 1 . . . . . 1 . . . . . . . . . . . . . . . 4 . . . Garrison 11 | . . . . . 1 . . . . . . . 3 . . . . . . . . . . . 4 . . . . 3 . . Intercept . | . . . . . . . . . . . . . . . . . . . . . . . . . . . . . . . . . Searches Triggered . | . . . . . . . . . . . . . . . . . . . . . . . . . . . . . . . . . Construction Impeded 3 | . . . . . . . 1 . . . . . . . . . . . . . 1 . 1 . . . . . . . . . Haulers Reinforced 1 | . . . . . . . . . . . . . 1 . . . . . . . . . . . . . . . . . . . Active Scanning Responses . | . . . . . . . . . . . . . . . . . . . . . . . . . . . . . . . . . Cargo Convoy Interrupts 2 | . . . . . . . . . . . . . . . . . . . . . 1 . . . . . . . 1 . . . Alert ID Control Effect 125 | . . . . . . . . . . . . . . . . . . . . 4 17 8 13 . 11 5 2 9 35 2 9 10 Stealth | -11 -10 -10 -10 -9 -8 -8 -8 -8 -7 -7 -7 -7 -7 -7 -6 -6 -6 -6 -6 -6 -5 -5 -4 -4 -3 -3 -2 -2 -2 -2 -2 -1 --------- Run | Yrd Mat Min Exi Min Mat Gar Mat Gar Fac Was Fac Gar Fac Gar Fac Was Fac Gar Fac Gar Fac Gar Fac Gar Res Gar Res Gar Res Tes Gar Acc Distress Signals 23 | . 1 . . . 4 . 5 . . . . . . . . . . . . 1 4 . 3 . 2 . . . 2 1 . . Communications Jammed 203 | . . . . . . . . . . . . . . . . . . . . . 18 . . . 33 . . . 78 44 . 30 Distress Signals 199 | . . . . . . . . . . . . . . . . . . . . . 17 . . . 33 . . . 75 44 . 30 Times Spotted 780 | . 36 7 . . 60 25 35 22 . 6 . 29 17 36 1 5 12 42 3 48 54 24 25 13 32 45 4 39 52 38 47 23 Peak Tracking Total 12 | . 5 2 . . 6 4 5 4 . 2 . 5 2 12 1 2 4 6 1 6 9 3 4 4 5 5 1 5 6 5 5 4 Tactical Retreats 31 | . 1 . . . 4 2 3 1 . . . 1 . 1 . . 1 2 . 2 1 1 1 3 . 6 . . . 1 . . Traps | -11 -10 -10 -10 -9 -8 -8 -8 -8 -7 -7 -7 -7 -7 -7 -6 -6 -6 -6 -6 -6 -5 -5 -4 -4 -3 -3 -2 -2 -2 -2 -2 -1 ------- Run | Yrd Mat Min Exi Min Mat Gar Mat Gar Fac Was Fac Gar Fac Gar Fac Was Fac Gar Fac Gar Fac Gar Fac Gar Res Gar Res Gar Res Tes Gar Acc Traps Triggered 43 | . 3 . . . . 8 . 1 1 . . 3 3 3 1 . 1 4 . 3 . 2 . . . 1 . . . 2 4 3 Indirectly . | . . . . . . . . . . . . . . . . . . . . . . . . . . . . . . . . . Trap Hack Attempts 25 | . 25 . . . . . . . . . . . . . . . . . . . . . . . . . . . . . . . Triggered 1 | . 1 . . . . . . . . . . . . . . . . . . . . . . . . . . . . . . . Disarmed 1 | . 1 . . . . . . . . . . . . . . . . . . . . . . . . . . . . . . . Reprogrammed . | . . . . . . . . . . . . . . . . . . . . . . . . . . . . . . . . . Reused 1 | . . . . . . . . . . . . . . . . . . . . . . . . 1 . . . . . . . . Traps Extracted . | . . . . . . . . . . . . . . . . . . . . . . . . . . . . . . . . . Installed 1 | . . . . . . . . . . . . . . . . . . . . . . . . 1 . . . . . . . . Triggered . | . . . . . . . . . . . . . . . . . . . . . . . . . . . . . . . . . Most Traps Carried 4 | . . . . . . . . . . . . . . . . . . . . . . . . 4 3 3 . . . . . . Machines | -11 -10 -10 -10 -9 -8 -8 -8 -8 -7 -7 -7 -7 -7 -7 -6 -6 -6 -6 -6 -6 -5 -5 -4 -4 -3 -3 -2 -2 -2 -2 -2 -1 ---------- Run | Yrd Mat Min Exi Min Mat Gar Mat Gar Fac Was Fac Gar Fac Gar Fac Was Fac Gar Fac Gar Fac Gar Fac Gar Res Gar Res Gar Res Tes Gar Acc Machines Disabled 116 | . . . . . 6 6 4 5 . . . 6 11 4 2 . . 7 . 5 3 6 6 6 . 6 1 4 7 13 6 2 Max in Single Turn 2 | . . . . . 2 1 1 1 . . . 1 . 1 1 . . 1 . 1 2 1 1 1 . 1 1 1 . 1 1 1 Garrison Access 5 | . . . . . . . . . . . . . . . 1 . . . . . . . . . . . . . 1 . . 3 Garrison Relay 43 | . . . . . . 1 . 4 . . . 4 . 4 . . . 5 . 4 . 5 . 2 . 5 . 4 . . 5 . Machines Repaired . | . . . . . . . . . . . . . . . . . . . . . . . . . . . . . . . . . Machines Dismantled . | . . . . . . . . . . . . . . . . . . . . . . . . . . . . . . . . . Machines Sabotaged . | . . . . . . . . . . . . . . . . . . . . . . . . . . . . . . . . . Overloaded Fab Kills . | . . . . . . . . . . . . . . . . . . . . . . . . . . . . . . . . . Hacking | -11 -10 -10 -10 -9 -8 -8 -8 -8 -7 -7 -7 -7 -7 -7 -6 -6 -6 -6 -6 -6 -5 -5 -4 -4 -3 -3 -2 -2 -2 -2 -2 -1 --------- Run | Yrd Mat Min Exi Min Mat Gar Mat Gar Fac Was Fac Gar Fac Gar Fac Was Fac Gar Fac Gar Fac Gar Fac Gar Res Gar Res Gar Res Tes Gar Acc Machines Accessed 103 | . 8 . 2 . 15 2 6 3 . . 1 2 8 2 6 . 4 2 7 2 3 2 3 2 2 2 3 1 4 5 2 4 Terminals 66 | . 6 . . . 10 2 3 3 . . . 2 3 2 4 . 3 2 4 2 1 2 1 2 1 2 2 1 4 2 2 . Fabricators 9 | . . . . . . . . . . . . . 4 . . . . . 1 . . . 1 . . . . . . 2 . 1 Repair Stations 5 | . . . . . 1 . 1 . . . . . . . 1 . . . 1 . 1 . . . . . . . . . . . Recycling Units 5 | . 2 . . . 2 . 1 . . . . . . . . . . . . . . . . . . . . . . . . . Scanalyzers 1 | . . . . . 1 . . . . . . . . . . . . . . . . . . . . . . . . . . . Garrison Access 15 | . . . . . 1 . 1 . . . 1 . 1 . 1 . 1 . 1 . 1 . 1 . 1 . 1 . . 1 . 3 Total Hacks 228 | . 21 . 2 . 39 3 24 5 . . 1 4 14 3 14 . 9 4 18 4 5 3 8 4 4 3 5 2 9 8 6 6 Successful 104 | . 12 . 2 . 18 . 15 2 . . 1 . 5 1 6 . 1 2 8 1 1 2 4 4 2 2 2 2 1 3 1 6 Failed 123 | . 8 . . . 21 3 9 3 . . . 4 9 2 8 . 8 2 10 3 4 1 4 . 2 1 3 . 8 5 5 . Catastrophic 33 | . 1 . . . 4 2 2 1 . . . 2 2 2 3 . 4 1 1 . 1 . . . 1 . 2 . 3 . 1 . Database Lockouts 1 | . 1 . . . . . . . . . . . . . . . . . . . . . . . . . . . . . . . Manual 130 | . 20 . 1 . 33 . 15 . . . . . 8 . 9 . 6 . 9 . 4 . 6 2 1 . 2 1 8 4 1 . Terminals 157 | . 19 . . . 32 3 12 5 . . . 4 6 3 9 . 8 4 10 4 1 3 3 4 1 3 3 2 9 3 6 . Fabricators 17 | . . . . . . . . . . . . . 6 . . . . . 2 . . . 3 . . . . . . 4 . 2 Repair Stations 17 | . . . . . 2 . 7 . . . . . . . 3 . . . 3 . 2 . . . . . . . . . . . Recycling Units 6 | . 2 . . . 2 . 2 . . . . . . . . . . . . . . . . . . . . . . . . . Scanalyzers 2 | . . . . . 2 . . . . . . . . . . . . . . . . . . . . . . . . . . . Garrison Access 27 | . . . . . 1 . 3 . . . 1 . 2 . 2 . 1 . 3 . 2 . 2 . 3 . 2 . . 1 . 4 Terminal Hacks 27 | . 3 . 2 . 2 . 1 2 . . . . . 1 1 . . 2 1 1 . 2 . 3 . 2 . 2 . 1 1 . Record 1 | . . . 1 . . . . . . . . . . . . . . . . . . . . . . . . . . . . . Robot Schematic 1 | . 1 . . . . . . . . . . . . . . . . . . . . . . . . . . . . . . . Robot Analysis 1 | . 1 . . . . . . . . . . . . . . . . . . . . . . . . . . . . . . . Prototype ID Bank 1 | . 1 . . . . . . . . . . . . . . . . . . . . . . . . . . . . . . . Open Door 2 | . . . . . . . . . . . . . . . . . . . . 1 . . . . . 1 . . . . . . Emergency Access Points 7 | . . . . . . . . 1 . . . . . 1 . . . 1 . . . 1 . 1 . 1 . 1 . . . . Garrison Index 1 | . . . . . . . . . . . . . . . 1 . . . . . . . . . . . . . . . . . Alert Level 1 | . . . . . 1 . . . . . . . . . . . . . . . . . . . . . . . . . . . Unreport Threat 3 | . . . . . 1 . 1 . . . . . . . . . . . 1 . . . . . . . . . . . . . Zone Layout 1 | . . . . . . . . . . . . . . . . . . . . . . . . . . . . . . 1 . . Garrison Registry 4 | . . . . . . . . 1 . . . . . . . . . . . . . . . 2 . . . 1 . . . . Patrol Navigation 2 | . . . . . . . . . . . . . . . . . . 1 . . . . . . . . . . . . 1 . Security Stations 1 | . . . . . . . . . . . . . . . . . . . . . . 1 . . . . . . . . . . Proto ID Catalog 1 | . . . 1 . . . . . . . . . . . . . . . . . . . . . . . . . . . . . Fabricator Hacks 5 | . . . . . . . . . . . . . 3 . . . . . . . . . . . . . . . . . . 2 Network Status 1 | . . . . . . . . . . . . . 1 . . . . . . . . . . . . . . . . . . . Load Schematic 1 | . . . . . . . . . . . . . . . . . . . . . . . . . . . . . . . . 1 Build 3 | . . . . . . . . . . . . . 2 . . . . . . . . . . . . . . . . . . 1 Repair Station Hacks 9 | . . . . . 2 . 6 . . . . . . . 1 . . . . . . . . . . . . . . . . . Scan Component 5 | . . . . . 1 . 3 . . . . . . . 1 . . . . . . . . . . . . . . . . . Repair 4 | . . . . . 1 . 3 . . . . . . . . . . . . . . . . . . . . . . . . . Recycling Unit Hacks . | . . . . . . . . . . . . . . . . . . . . . . . . . . . . . . . . . Scanalyzer 2 | . . . . . 2 . . . . . . . . . . . . . . . . . . . . . . . . . . . Insert Component 1 | . . . . . 1 . . . . . . . . . . . . . . . . . . . . . . . . . . . Analyze 1 | . . . . . 1 . . . . . . . . . . . . . . . . . . . . . . . . . . . Garrison Access Hacks 23 | . . . . . 1 . 2 . . . 1 . 2 . 2 . 1 . 2 . 1 . 2 . 2 . 2 . . 1 . 4 Unlock Access 11 | . . . . . 1 . 1 . . . 1 . 1 . . . 1 . 1 . 1 . 1 . 1 . 1 . . 1 . . Seal Access 4 | . . . . . . . . . . . . . . . 1 . . . . . . . . . . . . . . . . 3 Coupler Status 8 | . . . . . . . 1 . . . . . 1 . 1 . . . 1 . . . 1 . 1 . 1 . . . . 1 Unauthorized Hacks 38 | . 9 . . . 11 . 6 . . . . . . . 2 . . . 5 . . . 2 1 . . . . 1 1 . . Terminals 28 | . 7 . . . 9 . 4 . . . . . . . 1 . . . 3 . . . 1 1 . . . . 1 1 . . Track 1 | . . . . . . . . . . . . . . . . . . . . . . . . . . . . . . 1 . . Assimilate 2 | . . . . . 1 . . . . . . . . . . . . . 1 . . . . . . . . . . . . . Botnet 6 | . 2 . . . 2 . 1 . . . . . . . . . . . . . . . 1 . . . . . . . . . Operators 3 | . . . . . . . 1 . . . . . . . 1 . . . . . . . . . . . . . 1 . . . Skim 15 | . 5 . . . 6 . 2 . . . . . . . . . . . 2 . . . . . . . . . . . . . Override 1 | . . . . . . . . . . . . . . . . . . . . . . . . 1 . . . . . . . . Fabricators 1 | . . . . . . . . . . . . . . . . . . . . . . . 1 . . . . . . . . . Liberate 1 | . . . . . . . . . . . . . . . . . . . . . . . 1 . . . . . . . . . Repair Stations 2 | . . . . . . . . . . . . . . . 1 . . . 1 . . . . . . . . . . . . . Mechanics 2 | . . . . . . . . . . . . . . . 1 . . . 1 . . . . . . . . . . . . . Recycling Units 5 | . 2 . . . 2 . 1 . . . . . . . . . . . . . . . . . . . . . . . . . Tunnel 5 | . 2 . . . 2 . 1 . . . . . . . . . . . . . . . . . . . . . . . . . Scanalyzers . | . . . . . . . . . . . . . . . . . . . . . . . . . . . . . . . . . Garrison Access 2 | . . . . . . . 1 . . . . . . . . . . . 1 . . . . . . . . . . . . . Eject 2 | . . . . . . . 1 . . . . . . . . . . . 1 . . . . . . . . . . . . . Data Cores Recovered 1 | . . . . . . . . . . . . . . . . . . . . . 1 . . . . . . . . . . . Used . | . . . . . . . . . . . . . . . . . . . . . . . . . . . . . . . . . Hacking Detections 84 | . 5 . . . 12 2 5 3 . . . 2 6 2 6 . 4 2 7 2 3 2 3 1 2 1 3 1 4 4 2 . Full Trace Events 10 | . 2 . . . 1 1 . . . . . 2 . . . . . 1 . 2 . . . . . . 1 . . . . . Feedback Events . | . . . . . . . . . . . . . . . . . . . . . . . . . . . . . . . . . Feedback Blocked . | . . . . . . . . . . . . . . . . . . . . . . . . . . . . . . . . . Robot Schematics Acquired 3 | . 1 . . . . . . . . . . . . . . . . . . . . . . . . . . . . 2 . . Robots Built 2 | . . . . . . . . . . . . . 1 . . . . . . . . . . . . . . . . . . 1 Authchips 1 | . . . . . . . . . . . . . . . . . . . . . . . . . . . . . . . . 1 Time 67 | . . . . . . . . . . . . . 40 . . . . . . . . . . . . . . . . . . 27 Total Robot Build Rating 2 | . . . . . . . . . . . . . 1 . . . . . . . . . . . . . . . . . . 1 Part Schematics Acquired 9 | . . . . . 1 . . . . . . . . . . . . . . . . . . . . . . . . 8 . . Parts Built 2 | . . . . . . . . . . . . . 2 . . . . . . . . . . . . . . . . . . . Authchips . | . . . . . . . . . . . . . . . . . . . . . . . . . . . . . . . . . Time 117 | . . . . . . . . . . . . . 117 . . . . . . . . . . . . . . . . . . . Total Part Build Rating 14 | . . . . . . . . . . . . . 14 . . . . . . . . . . . . . . . . . . . Parts Repaired 4 | . . . . . 1 . 3 . . . . . . . . . . . . . . . . . . . . . . . . . Time 164 | . . . . . 38 . 126 . . . . . . . . . . . . . . . . . . . . . . . . . Parts Recycled . | . . . . . . . . . . . . . . . . . . . . . . . . . . . . . . . . . Recycled Matter . | . . . . . . . . . . . . . . . . . . . . . . . . . . . . . . . . . Retrieved Matter . | . . . . . . . . . . . . . . . . . . . . . . . . . . . . . . . . . Retrieved Components . | . . . . . . . . . . . . . . . . . . . . . . . . . . . . . . . . . Parts Scanalyzed 1 | . . . . . 1 . . . . . . . . . . . . . . . . . . . . . . . . . . . Part Schematics Acquired 1 | . . . . . 1 . . . . . . . . . . . . . . . . . . . . . . . . . . . Parts Damaged . | . . . . . . . . . . . . . . . . . . . . . . . . . . . . . . . . . Bothacking | -11 -10 -10 -10 -9 -8 -8 -8 -8 -7 -7 -7 -7 -7 -7 -6 -6 -6 -6 -6 -6 -5 -5 -4 -4 -3 -3 -2 -2 -2 -2 -2 -1 ------------ Run | Yrd Mat Min Exi Min Mat Gar Mat Gar Fac Was Fac Gar Fac Gar Fac Was Fac Gar Fac Gar Fac Gar Fac Gar Res Gar Res Gar Res Tes Gar Acc Used RIF Installer 12 | . . . . . . 1 . 1 . . . 1 . 1 . . . 1 . 1 . 1 . 1 . 1 . 1 . . 2 . Hotswap 1 | . . . . . . . . . . . . . . . . . . . . . . . . 1 . . . . . . . . Code Merge 1 | . . . . . . . . . . . . . . 1 . . . . . . . . . . . . . . . . . . Command Fork 1 | . . . . . . . . . . . . . . . . . . 1 . . . . . . . . . . . . . . Threat Obfuscator 1 | . . . . . . . . . . . . . . . . . . . . . . 1 . . . . . . . . . . Signal Jammer 1 | . . . . . . . . . . . . 1 . . . . . . . . . . . . . . . . . . . . Zone Cloak 2 | . . . . . . . . . . . . . . . . . . . . . . . . . . 1 . . . . 1 . Robot Detection 1 | . . . . . . . . 1 . . . . . . . . . . . . . . . . . . . . . . . . Watcher Feeds 1 | . . . . . . . . . . . . . . . . . . . . . . . . . . . . . . . 1 . Alert ID Control 1 | . . . . . . . . . . . . . . . . . . . . 1 . . . . . . . . . . . . Structural Interface 1 | . . . . . . . . . . . . . . . . . . . . . . . . . . . . 1 . . . . Robots Hacked 230 | . . . . . . . 12 4 1 6 . 15 4 11 . 6 4 11 2 8 15 15 11 3 8 20 2 18 13 13 16 12 Non-combat 41 | . . . . . . . 3 . 1 . . 1 2 . . . 3 . 2 . 8 . 4 . 1 2 . . 3 3 . 8 Combat 189 | . . . . . . . 9 4 . 6 . 14 2 11 . 6 1 11 . 8 7 15 7 3 7 18 2 18 10 10 16 4 Robot Hacks Applied 263 | . . . . . . . 20 4 1 6 . 16 4 11 . 6 6 12 7 8 19 16 11 3 9 21 3 18 20 14 16 12 parse_system 9 | . . . . . . . 1 . . . . . . . . . . . . . . 1 4 . . . . 1 . . . 2 generate_echo 1 | . . . . . . . . . . . . 1 . . . . . . . . . . . . . . . . . . . . start_evac 2 | . . . . . . . . . . . . . . . . . . . . . . . . . . . . . 2 . . . find_chute 1 | . . . . . . . . . 1 . . . . . . . . . . . . . . . . . . . . . . . ignore_repairs 1 | . . . . . . . . . . . . . . . . . . . . . 1 . . . . . . . . . . . drop_inventory 10 | . . . . . . . . . . . . . 2 . . . . . 1 . 2 . . . 1 . . . 1 . . 3 purge_threat 22 | . . . . . . . 7 . . . . . . . . . . . 4 . 4 . . . . . . . 5 2 . . block_reporting 5 | . . . . . . . 1 . . . . . . . . . 1 . . . 2 . . . . . . . 1 . . . map_route 4 | . . . . . . . . . . . . . . . . . . . . . . . . . . . . . . . . 4 ignore_targets 12 | . . . . . . . . . . 6 . . . . . 6 . . . . . . . . . . . . . . . . find_garrison 3 | . . . . . . . . . . . . . . . . . 1 . . . . . . . 1 . 1 . . . . . disrupt_area 1 | . . . . . . . . . . . . 1 . . . . . . . . . . . . . . . . . . . . spike_heat 2 | . . . . . . . . . . . . . . . . . . 1 . . . . . . . 1 . . . . . . amplify_resonance 62 | . . . . . . . 1 4 . . . 4 . 5 . . . 6 . 1 . 5 2 1 2 8 2 6 2 4 7 2 reboot_system 1 | . . . . . . . . . . . . 1 . . . . . . . . . . . . . . . . . . . . overwrite_iff 36 | . . . . . . . 2 . . . . 2 . 4 . . 1 2 . 2 2 2 3 . 2 5 . 2 1 2 4 . streamctrl_high 2 | . . . . . . . . . . . . . . . . . . . . . . 1 . . . . . . . . . 1 formatsys_low 16 | . . . . . . . 2 . . . . 1 . . . . 3 . 2 . 2 . . . . 2 . . 1 3 . . formatsys_high 73 | . . . . . . . 6 . . . . 6 2 2 . . . 3 . 5 6 7 2 2 3 5 . 9 7 3 5 . Relay Couplers Released 200 | . . . . . . 5 3 15 . . . 20 . 15 3 . . 21 4 16 . 23 3 9 . 24 . 14 1 . 21 3 Ejected 7 | . . . . . . . 3 . . . . . . . . . . . 4 . . . . . . . . . . . . . Machine Destruction 182 | . . . . . . 5 . 15 . . . 16 . 15 3 . . 21 . 16 . 23 . 9 . 24 . 14 1 . 17 3 Programmers 11 | . . . . . . . . . . . . 4 . . . . . . . . . . 3 . . . . . . . 4 . Attached 84 | . . . . . . 1 7 1 . 1 . 10 1 5 . . . 8 1 3 8 8 3 3 2 7 . 7 1 . 6 1 Merged Code Value 169 | . . . . . . . . . . . . . . 17 . 11 . 29 6 23 . . 7 8 . 20 . 38 . . 10 . Fabnet Peak Effective % . | . . . . . . . . . . . . . . . . . . . . . . . . . . . . . . . . . Robots Rewired 12 | . . . . . . . . . 1 . . 4 . . . . . . . . . 3 2 . . . . 2 . . . . Allies Hacked 18 | . . . . . . . . . . . . . . 1 . . 2 . . 2 4 . . . . . . 1 2 5 . 1 Hacks Repelled . | . . . . . . . . . . . . . . . . . . . . . . . . . . . . . . . . . Allies | -11 -10 -10 -10 -9 -8 -8 -8 -8 -7 -7 -7 -7 -7 -7 -6 -6 -6 -6 -6 -6 -5 -5 -4 -4 -3 -3 -2 -2 -2 -2 -2 -1 -------- Run | Yrd Mat Min Exi Min Mat Gar Mat Gar Fac Was Fac Gar Fac Gar Fac Was Fac Gar Fac Gar Fac Gar Fac Gar Res Gar Res Gar Res Tes Gar Acc Total Allies 168 | . . . . . 1 . 10 . 1 1 . 15 3 8 . . 4 7 3 10 12 14 8 2 8 14 . 14 10 11 10 2 Largest Group 17 | . . . . . 1 . 5 5 1 1 . 10 9 10 4 3 3 2 3 5 6 6 4 1 3 7 7 14 17 7 3 4 Highest-Rated Group 1454 | . . . . . 10 . 83 83 16 16 . 281 249 286 176 144 66 190 59 163 204 251 196 49 176 358 358 1032 1454 728 176 219 Highest-Rated Ally 219 | . . . . . 10 . 29 29 16 16 . 32 32 80 80 80 29 95 26 47 64 85 56 49 64 64 64 148 183 183 69 219 Total Orders 28 | . . . . . . . . 1 . . . 1 1 2 . . 1 . . 2 1 8 . . . 1 1 2 2 4 . 1 STAY 8 | . . . . . . . . 1 . . . . . . . . . . . 2 . 4 . . . . . . . 1 . . FOLLOW 4 | . . . . . . . . . . . . . . . . . . . . . . 4 . . . . . . . . . . AID 15 | . . . . . . . . . . . . 1 1 1 . . 1 . . . 1 . . . . 1 1 2 2 3 . 1 PICKUP 1 | . . . . . . . . . . . . . . 1 . . . . . . . . . . . . . . . . . . Ally Attacks 1366 | . . . . . . . 27 56 . 74 . 55 50 80 . 49 5 56 . 42 70 61 57 6 44 31 20 88 321 95 36 43 Total Damage 44099 | . . . . . . . 331 909 . 938 . 1490 2170 2980 . 2390 92 1664 . 1290 2310 1147 1850 219 1904 1079 913 2508 12889 2405 1256 1365 Kills 290 | . . . . . . . 5 12 . 2 . 15 22 28 . 5 1 15 . 12 18 9 14 2 11 5 2 17 64 11 9 11 Allies Corrupted 17 | . . . . . . . . . . . . 1 . 2 . 1 . . . 1 5 . . . 1 . . . 5 1 . . Allies Melted 4 | . . . . . . . . . . . . . . . . . . 1 . . . . 1 . . 1 . . 1 . . . Intel | -11 -10 -10 -10 -9 -8 -8 -8 -8 -7 -7 -7 -7 -7 -7 -6 -6 -6 -6 -6 -6 -5 -5 -4 -4 -3 -3 -2 -2 -2 -2 -2 -1 ------- Run | Yrd Mat Min Exi Min Mat Gar Mat Gar Fac Was Fac Gar Fac Gar Fac Was Fac Gar Fac Gar Fac Gar Fac Gar Res Gar Res Gar Res Tes Gar Acc Active Infowar (turns) 13064 | . . . . . . . . . . . . . . . . . . . . . 403 1749 1018 682 790 1276 357 1098 1574 1867 1193 1057 Optics 13064 | . . . . . . . . . . . . . . . . . . . . . 403 1749 1018 682 790 1276 357 1098 1574 1867 1193 1057 Terrain 406 | . . . . . . . . . . . . . . . . . . . . . . . . . . . . . . 406 . . Robot Analysis Total 1 | . 1 . . . . . . . . . . . . . . . . . . . . . . . . . . . . . . . Derelict Logs Recovered 4 | . . 3 . 1 . . . . . . . . . . . . . . . . . . . . . . . . . . . . Drone Launches . | . . . . . . . . . . . . . . . . . . . . . . . . . . . . . . . . . Drone Recoveries . | . . . . . . . . . . . . . . . . . . . . . . . . . . . . . . . . . Exploration | -11 -10 -10 -10 -9 -8 -8 -8 -8 -7 -7 -7 -7 -7 -7 -6 -6 -6 -6 -6 -6 -5 -5 -4 -4 -3 -3 -2 -2 -2 -2 -2 -1 ------------- Run | Yrd Mat Min Exi Min Mat Gar Mat Gar Fac Was Fac Gar Fac Gar Fac Was Fac Gar Fac Gar Fac Gar Fac Gar Res Gar Res Gar Res Tes Gar Acc Turns Passed 35556 | 75 1259 746 254 403 2966 2213 1700 1187 273 593 36 1433 1245 1194 286 554 1048 1659 481 1585 1705 1749 1018 682 790 1276 357 1098 1574 1867 1193 1057 Spaces Moved 16279 | 42 626 543 219 347 1142 761 504 443 104 166 15 685 700 642 171 190 305 615 245 691 781 917 483 275 343 651 164 563 892 958 587 509 Core 6 | 2 . . . . . . . . . . . . . . . . . . . . 4 . . . . . . . . . . . Treads 14234 | 40 326 50 . . 931 761 504 443 104 166 15 685 700 642 171 190 305 615 245 691 777 917 192 97 343 651 164 563 892 958 587 509 Legs . | . . . . . . . . . . . . . . . . . . . . . . . . . . . . . . . . . Wheels 2039 | . 300 493 219 347 211 . . . . . . . . . . . . . . . . . 291 178 . . . . . . . . Hover . | . . . . . . . . . . . . . . . . . . . . . . . . . . . . . . . . . Flight . | . . . . . . . . . . . . . . . . . . . . . . . . . . . . . . . . . Fastest Speed 50 | 50 105 105 115 115 115 243 240 240 240 240 240 160 160 160 160 160 160 160 160 160 50 162 162 140 148 148 148 148 148 148 145 148 Average Speed 175 | 154 142 122 115 115 211 245 241 240 240 240 240 171 160 160 160 231 239 230 186 185 162 162 177 197 176 148 148 148 148 149 150 149 Slowest Speed 560 | 160 240 240 115 115 320 246 243 240 240 320 240 240 160 160 160 240 240 240 240 255 245 163 275 560 242 151 148 148 148 150 225 545 Overloaded Moves . | . . . . . . . . . . . . . . . . . . . . . . . . . . . . . . . . . Propulsion Burnouts . | . . . . . . . . . . . . . . . . . . . . . . . . . . . . . . . . . Robots Hopped 1 | . . . . . . . . 1 . . . . . . . . . . . . . . . . . . . . . . . . Potential Cave-ins 3 | . . . . . . . . . . . . . . . . . . . . . . . . 3 . . . . . . . . Cave-ins Triggered . | . . . . . . . . . . . . . . . . . . . . . . . . . . . . . . . . . Exploration Rate (%) 52 | 4 95 98 61 79 88 75 55 57 5 77 1 82 28 94 6 85 13 78 9 83 17 81 16 41 14 91 6 82 26 89 85 26 Regions Visited 32 Branch Regions 4 Pre-discovered Areas 9 | . 2 1 1 1 3 . 1 . . . . . . . . . . . . . . . . . . . . . . . . . Known Exits Taken 12 | . . . . . 1 . 1 . . . 1 . 1 . . . 1 . 1 . 1 . 1 . 1 . 1 . 1 1 . . Unknown Exits Taken 5 | 1 1 1 1 1 . . . . . . . . . . . . . . . . . . . . . . . . . . . . Scrap Searched 1 | . . 1 . . . . . . . . . . . . . . . . . . . . . . . . . . . . . . Spaces Dug 66 | . . . . . 1 . 16 9 1 . . 5 1 . . . 2 . 1 1 9 4 . 1 7 1 . . 2 5 . . Terrain Destroyed 643 | . . . . . 112 . 81 82 2 6 . 6 3 3 . 3 5 7 1 87 80 8 17 16 18 14 3 12 9 30 11 27 Melee 4 | . . . . . . . 1 . . . . 3 . . . . . . . . . . . . . . . . . . . . Projectile 256 | . . . . . 24 . 27 . 2 6 . 3 3 3 . 3 5 . 1 2 25 8 17 16 18 14 3 12 9 30 11 14 AOE 381 | . . . . . 88 . 53 82 . . . . . . . . . 7 . 85 53 . . . . . . . . . . 13 Terrain Rammed . | . . . . . . . . . . . . . . . . . . . . . . . . . . . . . . . . . Walls Destroyed . | . . . . . . . . . . . . . . . . . . . . . . . . . . . . . . . . . Machines Disabled . | . . . . . . . . . . . . . . . . . . . . . . . . . . . . . . . . . Actions | -11 -10 -10 -10 -9 -8 -8 -8 -8 -7 -7 -7 -7 -7 -7 -6 -6 -6 -6 -6 -6 -5 -5 -4 -4 -3 -3 -2 -2 -2 -2 -2 -1 --------- Run | Yrd Mat Min Exi Min Mat Gar Mat Gar Fac Was Fac Gar Fac Gar Fac Was Fac Gar Fac Gar Fac Gar Fac Gar Res Gar Res Gar Res Tes Gar Acc Total 21329 | 49 800 576 222 351 1482 961 880 538 123 320 15 862 808 765 181 276 597 765 267 875 1086 1122 571 352 463 881 264 780 1108 1379 886 724 Wait 1934 | . 30 4 . . 131 19 248 26 2 76 . 38 64 28 . 38 248 37 4 21 89 94 3 12 15 74 73 102 116 145 87 110 Move 16254 | 41 625 542 218 346 1142 760 503 440 104 165 15 684 700 641 171 189 305 614 244 690 780 916 483 274 343 650 164 562 891 958 586 508 Hop 1 | . . . . . . . . 1 . . . . . . . . . . . . . . . . . . . . . . . . Pick Up 275 | 1 8 2 2 2 23 17 7 13 3 6 . 14 7 14 3 1 3 6 3 12 21 15 6 8 8 13 4 10 3 18 15 7 Fast Attach 132 | 6 5 . . . 13 8 1 3 . 4 . 3 5 2 . 3 1 6 1 9 18 4 7 2 6 6 . 5 2 7 2 3 Attach 123 | . 2 2 . 2 9 1 7 3 2 1 . 7 2 1 3 . 6 1 2 7 18 2 3 7 4 1 3 4 2 3 12 6 Detach 61 | . 2 . 2 . 2 2 1 3 . 3 . . . 1 . 3 3 4 1 4 5 1 1 1 4 4 1 4 2 3 . 4 Swap 278 | . 2 . . . 21 15 16 11 2 3 . 15 4 9 . . 6 18 1 16 18 8 12 8 9 16 3 11 10 19 14 11 Drop 215 | . 2 . . 1 22 20 4 11 2 12 . 6 7 12 . 5 2 4 1 10 4 2 6 2 10 18 4 8 5 25 6 4 Fire 1842 | . 96 25 . . 112 102 86 24 7 50 . 42 18 52 4 37 21 66 10 98 119 77 50 37 61 96 12 70 64 191 148 67 Melee 41 | . . . . . . 3 2 3 . . . 33 . . . . . . . . . . . . . . . . . . . . Ram 1 | . . 1 . . . . . . . . . . . . . . . . . . . . . . . . . . . . . . Kick . | . . . . . . . . . . . . . . . . . . . . . . . . . . . . . . . . . Crush 62 | 1 3 . . . 7 4 4 . 1 . . . 1 1 . . . . . 1 10 . . . 3 . . . 10 5 7 4 Escape Stasis 27 | . . . . . . 10 . . . . . 2 . . . . . 8 . 4 . . . . . . . 3 . . . . Rewire 57 | . . . . . . . 1 . . . . 18 . 4 . . 2 1 . 3 4 3 . . . 3 . 1 3 5 9 . Trap 26 | . 25 . . . . . . . . . . . . . . . . . . . . . . 1 . . . . . . . . Miscellaneous . | . . . . . . . . . . . . . . . . . . . . . . . . . . . . . . . . . Route ------- -11/Scrapyard -10/Materials (discovered 4 exits: [*Mat x3] / [*Min]) -10/Mines (discovered 4 exits: [*Mat x2] / *Exi / [*Sub]) -10/Exiles -9/Mines -8/Materials (discovered 4 exits: [*Fac] / [*Sto x2] / Gar) -8/Garrison (discovered 3 exits: *Mat x3) -8/Materials -8/Garrison (discovered 3 exits: [*Fac x3]) -7/Factory (discovered 4 exits: Fac x2 / Low x2) -7/Waste -7/Factory -7/Garrison (discovered 3 exits: *Fac x3) -7/Factory -7/Garrison (discovered 3 exits: *Fac x3) -6/Factory -6/Waste -6/Factory (discovered 2 exits: [*Low] / Gar) -6/Garrison (discovered 3 exits: *Fac x3) -6/Factory (discovered 2 exits: [*Low] / Gar) -6/Garrison (discovered 3 exits: *Fac x3) -5/Factory -5/Garrison (discovered 4 exits: *Fac x3 / [*Fac]) -4/Factory (discovered 2 exits: [*Upp] / Gar) -4/Garrison (discovered 3 exits: *Res x3) -3/Research -3/Garrison (discovered 3 exits: *Res x3) -2/Research -2/Garrison (discovered 3 exits: *Res x3) -2/Research -2/Testing (discovered 2 exits: *Acc / Gar) -2/Garrison (discovered 3 exits: *Acc x3) -1/Access To Epsilon Eridani History --------- Turn | Location | Event 29 | -11/Scrapyard | Discovered new exit (range 16) 76 | -11/Scrapyard | Entered Materials 313 | -10/Materials | Build established: Mutant 523 | -10/Materials | Central database locked down 828 | -10/Materials | Discovered new exit (range 14) 941 | -10/Materials | Discovered new exit (range 16) 1260 | -10/Materials | Discovered new exit (range 10) 1313 | -10/Materials | Discovered new exit (range 12) 1335 | -10/Materials | Entered Mines 1339 | -10/Mines | Learned 2 Materials zone layouts 1345 | -10/Mines | Learned Materials non-interactive machine intel 1432 | -10/Mines | Deemed a non-threat by the Exiles lab entrance 1432 | -10/Mines | Discovered new exit (range 5) 1551 | -10/Mines | Core integrity fell below 50% 1640 | -10/Mines | Discovered new exit (range 16) 1683 | -10/Mines | Discovered new exit (range 9) 1877 | -10/Mines | A weapon hastily lodged in a ceiling crevice suddenly fell to the ground 1959 | -10/Mines | Discovered new exit (range 9) 2081 | -10/Mines | Entered Exiles 2110 | -10/Exiles | Met 8R-AWN 2131 | -10/Exiles | Met EX-HEX 2161 | -10/Exiles | Met EX-BIN 2177 | -10/Exiles | Aligned with FarCom system 2178 | -10/Exiles | Given EX-Vault access code 2204 | -10/Exiles | Opened EX-Vault 2214 | -10/Exiles | Found Gui. Plasma Cannon 2221 | -10/Exiles | Found Latent Energy Streamer 2244 | -10/Exiles | Warned to stay clear of 0b10 Research branches 2281 | -10/Exiles | Met EX-DEC 2286 | -10/Exiles | Learned location of Zion (-6) 2326 | -10/Exiles | Discovered new exit (range 10) 2335 | -10/Exiles | Stole two prototypes: Latent Energy Streamer, Gui. Plasma Cannon 2335 | -10/Exiles | Entered Mines 2356 | -9/Mines | Found a hidden stash of uninstalled traps 2417 | -9/Mines | Received a Rocket Launcher from a helpful Derelict 2638 | -9/Mines | Discovered new exit (range 5) 2738 | -9/Mines | Entered Materials 2738 | -8/Materials | Evolved 4 slots: Propulsion x1, Utility x3 2740 | -8/Materials | Loaded intel: 34 non-interactive machine locations 2836 | -8/Materials | Lost 3 parts (1p2w) 3106 | -8/Materials | Build established: Scavenger-Mutant 4190 | -8/Materials | Discovered new exit (range 10) 4300 | -8/Materials | Discovered new exit (range 8) 4360 | -8/Materials | Build established: Mutant 4766 | -8/Materials | Learned location of 3 exits from Factory 4844 | -8/Materials | Learned location of 1 exit from Storage 4976 | -8/Materials | Learned Storage emergency access door positions 5028 | -8/Materials | Learned Storage stockpile data 5030 | -8/Materials | Discovered new exit (range 16) 5092 | -8/Materials | Learned 2 Lower Caves zone layouts 5138 | -8/Materials | First assault squad dispatched 5273 | -8/Materials | Build established: Scavenger-Mutant 5367 | -8/Materials | Garrison activated, responded to threat 5493 | -8/Materials | Repaired Hvy. Particle Cannon 5704 | -8/Materials | Identified exit to Garrison 5704 | -8/Materials | Entered Garrison 5772 | -8/Garrison | Triggered checkpoint 5806 | -8/Garrison | Garrison Relay disabled 6043 | -8/Garrison | Build established: Mutant 6043 | -8/Garrison | Triggered checkpoint 6090 | -8/Garrison | Triggered checkpoint 6217 | -8/Garrison | Triggered checkpoint 6459 | -8/Garrison | Spotted B-75 Beast 6478 | -8/Garrison | Destroyed B-75 Beast 6513 | -8/Garrison | Spotted B-75 Beast 6517 | -8/Garrison | Core integrity fell below 50% 6526 | -8/Garrison | Destroyed B-75 Beast 6735 | -8/Garrison | Discovered new exit (range 10) 6822 | -8/Garrison | Triggered checkpoint 6978 | -8/Garrison | Triggered checkpoint 7105 | -8/Garrison | Discovered new exit (range 15) 7121 | -8/Garrison | Build established: Scavenger-Mutant 7149 | -8/Garrison | Installed Relay Interface Framework 7268 | -8/Garrison | Triggered checkpoint 7613 | -8/Garrison | Discovered new exit (range 12) 7917 | -8/Garrison | Entered Materials 8086 | -8/Materials | Build established: Bothacker-Mutant 8317 | -8/Materials | First assault squad dispatched 8413 | -8/Materials | Lost 3 parts (1p2u) 9289 | -8/Materials | Build established: Scavenger-Mutant 9355 | -8/Materials | Repaired Hrd. Medium Armor Plating 9421 | -8/Materials | Repaired Imp. Medium Treads 9461 | -8/Materials | Repaired Hvy. Particle Cannon 9601 | -8/Materials | Identified exit to Garrison 9617 | -8/Materials | Entered Garrison 9617 | -8/Garrison | Accompanied by 5 allies 9689 | -8/Garrison | Triggered checkpoint 9808 | -8/Garrison | Garrison Relay disabled 9892 | -8/Garrison | Discovered new exit (range 78) 9892 | -8/Garrison | Discovered new exit (range 68) 9892 | -8/Garrison | Discovered new exit (range 48) 9912 | -8/Garrison | Build established: Bothacker-Mutant 9955 | -8/Garrison | Triggered checkpoint 9975 | -8/Garrison | Triggered checkpoint 9989 | -8/Garrison | Triggered checkpoint 10004 | -8/Garrison | Triggered checkpoint 10031 | -8/Garrison | Core integrity fell below 20% 10135 | -8/Garrison | Garrison Relay disabled 10369 | -8/Garrison | Found Powered Armor 10372 | -8/Garrison | Found Powered Armor 10380 | -8/Garrison | Found Powered Armor 10388 | -8/Garrison | Found Powered Armor 10391 | -8/Garrison | Found Powered Armor 10562 | -8/Garrison | Triggered checkpoint 10622 | -8/Garrison | Garrison Relay disabled 10647 | -8/Garrison | Garrison Relay disabled 10701 | -8/Garrison | Expanded RIF knowledge: Robot Detection 10804 | -8/Garrison | Entered Factory 10804 | -7/Factory | Evolved 2 slots: Propulsion x1, Utility x1 10805 | -7/Factory | Identified exit to Lower Caves 10806 | -7/Factory | Identified exit to Factory 10806 | -7/Factory | FarCom data flow suspended 11077 | -7/Factory | Sucked down chute 11077 | -7/Factory | Entered Waste 11077 | -7/Waste | Met up with 1 ally sucked down the chute earlier 11092 | -7/Waste | EMP discharged 11101 | -7/Waste | Spotted C-40 Crusher 11135 | -7/Waste | Spotted C-40 Crusher 11135 | -7/Waste | Spotted C-40 Crusher 11152 | -7/Waste | Spotted C-40 Crusher 11153 | -7/Waste | Allies destroyed C-40 Crusher 11164 | -7/Waste | Found Damper Plating 11192 | -7/Waste | EMP discharged 11199 | -7/Waste | Spotted C-40 Crusher 11201 | -7/Waste | Spotted C-40 Crusher 11265 | -7/Waste | Allies destroyed C-40 Crusher 11292 | -7/Waste | EMP discharged 11392 | -7/Waste | EMP discharged 11465 | -7/Waste | Destroyed C-40 Crusher 11491 | -7/Waste | Found Damper Plating 11492 | -7/Waste | EMP discharged 11555 | -7/Waste | Destroyed C-40 Crusher 11592 | -7/Waste | EMP discharged 11645 | -7/Waste | Discovered new exit (range 10) 11670 | -7/Waste | Entered Factory 11706 | -7/Factory | Identified exit to Garrison 11706 | -7/Factory | Entered Garrison 11751 | -7/Garrison | Expanded RIF knowledge: Signal Jamming 11822 | -7/Garrison | Triggered checkpoint 11865 | -7/Garrison | Garrison Relay disabled 12022 | -7/Garrison | Triggered checkpoint 12047 | -7/Garrison | Triggered checkpoint 12109 | -7/Garrison | Discovered new exit (range 14) 12119 | -7/Garrison | Triggered checkpoint 12228 | -7/Garrison | Garrison Relay disabled 12309 | -7/Garrison | Rescued a captive Derelict 12313 | -7/Garrison | Rescued a captive Derelict 12675 | -7/Garrison | Discovered new exit (range 9) 12715 | -7/Garrison | Garrison Relay disabled 12985 | -7/Garrison | Garrison Relay disabled 13066 | -7/Garrison | Discovered new exit (range 8) 13139 | -7/Garrison | Entered Factory 13139 | -7/Factory | Accompanied by 9 allies 13567 | -7/Factory | Fabricated A-02 Transporter? 14042 | -7/Factory | Garrison activated, responded to threat 14297 | -7/Factory | Fabricated Antimatter Reactor (x2) 14339 | -7/Factory | First assault squad dispatched 14381 | -7/Factory | Identified exit to Garrison 14384 | -7/Factory | Entered Garrison 14384 | -7/Garrison | Accompanied by 8 allies 14442 | -7/Garrison | Triggered checkpoint 14459 | -7/Garrison | Garrison Relay disabled 14578 | -7/Garrison | Triggered checkpoint 14690 | -7/Garrison | Triggered checkpoint 14716 | -7/Garrison | Triggered checkpoint 14752 | -7/Garrison | Lost 5 allies 14796 | -7/Garrison | Triggered checkpoint 14829 | -7/Garrison | Garrison Relay disabled 14998 | -7/Garrison | Discovered exit to Factory (range 14) 15020 | -7/Garrison | Found embedded Infiltrators 15088 | -7/Garrison | Triggered checkpoint 15185 | -7/Garrison | Discovered exit to Factory (range 10) 15298 | -7/Garrison | Triggered checkpoint 15316 | -7/Garrison | Garrison Relay disabled 15445 | -7/Garrison | Expanded RIF knowledge: Code Merge 15460 | -7/Garrison | Triggered checkpoint 15485 | -7/Garrison | Garrison Relay disabled 15543 | -7/Garrison | Discovered exit to Factory (range 14) 15578 | -7/Garrison | Entered Factory 15578 | -6/Factory | Accompanied by 4 allies 15578 | -6/Factory | Evolved 2 slots: Power x1, Utility x1 15753 | -6/Factory | Build established: Botlord-Mutant 15864 | -6/Factory | Sucked down chute 15864 | -6/Factory | Entered Waste 15877 | -6/Waste | Spotted C-40 Crusher 15879 | -6/Waste | EMP discharged 15879 | -6/Waste | Spotted C-40 Crusher 15910 | -6/Waste | Spotted C-40 Crusher 15910 | -6/Waste | Allies destroyed C-40 Crusher 15914 | -6/Waste | 3 allies followed down the chute 15930 | -6/Waste | Destroyed C-40 Crusher 15942 | -6/Waste | Found Damper Plating 15959 | -6/Waste | 1 allies followed down the chute 15967 | -6/Waste | Spotted C-40 Crusher 15979 | -6/Waste | EMP discharged 15988 | -6/Waste | Allies destroyed C-40 Crusher 16008 | -6/Waste | Allies destroyed C-40 Crusher 16047 | -6/Waste | Spotted C-40 Crusher 16051 | -6/Waste | Spotted C-40 Crusher 16072 | -6/Waste | Destroyed C-40 Crusher 16079 | -6/Waste | EMP discharged 16146 | -6/Waste | Allies destroyed C-40 Crusher 16179 | -6/Waste | EMP discharged 16279 | -6/Waste | EMP discharged 16348 | -6/Waste | Discovered new exit (range 13) 16379 | -6/Waste | EMP discharged 16418 | -6/Waste | Entered Factory 16638 | -6/Factory | Discovered new exit (range 16) 17208 | -6/Factory | Spotted B-75 Beast 17223 | -6/Factory | Destroyed B-75 Beast 17327 | -6/Factory | Identified exit to Garrison 17466 | -6/Factory | Entered Garrison 17484 | -6/Garrison | Triggered checkpoint 17524 | -6/Garrison | Triggered checkpoint 17527 | -6/Garrison | Triggered checkpoint 17599 | -6/Garrison | Garrison Relay disabled 17722 | -6/Garrison | Garrison Relay disabled 17816 | -6/Garrison | Triggered checkpoint 17819 | -6/Garrison | Triggered checkpoint 17871 | -6/Garrison | Triggered checkpoint 17962 | -6/Garrison | Triggered checkpoint 18046 | -6/Garrison | Expanded RIF knowledge: Command Fork 18092 | -6/Garrison | Garrison Relay disabled 18102 | -6/Garrison | Found embedded Infiltrators 18184 | -6/Garrison | Discovered new exit (range 12) 18374 | -6/Garrison | Triggered checkpoint 18401 | -6/Garrison | Discovered new exit (range 15) 18564 | -6/Garrison | Triggered checkpoint 18878 | -6/Garrison | Discovered new exit (range 14) 19031 | -6/Garrison | Triggered checkpoint 19066 | -6/Garrison | Garrison Relay disabled 19125 | -6/Garrison | Entered Factory 19380 | -6/Factory | Discovered new exit (range 4) 19592 | -6/Factory | Identified exit to Garrison 19606 | -6/Factory | Entered Garrison 19606 | -6/Garrison | Accompanied by 3 allies 19728 | -6/Garrison | Triggered checkpoint 19749 | -6/Garrison | Garrison Relay disabled 19933 | -6/Garrison | Lost 4 allies 19996 | -6/Garrison | Triggered checkpoint 20010 | -6/Garrison | Triggered checkpoint 20024 | -6/Garrison | Triggered checkpoint 20047 | -6/Garrison | Triggered checkpoint 20084 | -6/Garrison | Lost 3 parts (2p1w) 20144 | -6/Garrison | Discovered new exit (range 13) 20286 | -6/Garrison | Garrison Relay disabled 20356 | -6/Garrison | Expanded RIF knowledge: Alert ID Control 20502 | -6/Garrison | Triggered checkpoint 20543 | -6/Garrison | Garrison Relay disabled 20556 | -6/Garrison | Triggered checkpoint 20580 | -6/Garrison | Rescued a captive Derelict 20582 | -6/Garrison | Rescued a captive Derelict 20654 | -6/Garrison | Discovered new exit (range 13) 20683 | -6/Garrison | System corruption reached 10% 20976 | -6/Garrison | Triggered checkpoint 21006 | -6/Garrison | Garrison Relay disabled 21080 | -6/Garrison | Discovered new exit (range 8) 21153 | -6/Garrison | Found Relay Coupler [Proto] 21157 | -6/Garrison | Found Relay Coupler [Proto] 21191 | -6/Garrison | Entered Factory 21191 | -5/Factory | Accompanied by 4 allies 21191 | -5/Factory | Evolved 2 slots: Propulsion x1, Utility x1 21331 | -5/Factory | Identified exit to Garrison 21624 | -5/Factory | Lost 4 allies 22356 | -5/Factory | Cargo convoy interrupted 22409 | -5/Factory | Lost 4 allies 22417 | -5/Factory | Core integrity fell below 50% 22430 | -5/Factory | Core integrity fell below 20% 22447 | -5/Factory | Lost 17 parts (3p3n7u4w) 22493 | -5/Factory | Found Prototype Processor 22493 | -5/Factory | Identified Spectral Analyzer 22714 | -5/Factory | Lost 3 parts (1p1n1u) 22896 | -5/Factory | Entered Garrison 22992 | -5/Garrison | Garrison Relay disabled 23029 | -5/Garrison | Spotted B-75 Beast 23040 | -5/Garrison | Hijacked Beast 6a control node with streamctrl_high 23042 | -5/Garrison | Triggered checkpoint 23080 | -5/Garrison | Triggered checkpoint 23082 | -5/Garrison | Triggered checkpoint 23115 | -5/Garrison | Lost 4 allies 23336 | -5/Garrison | Triggered checkpoint 23358 | -5/Garrison | Discovered new exit (range 6) 23450 | -5/Garrison | Discovered new exit (range 13) 23513 | -5/Garrison | Garrison Relay disabled 23724 | -5/Garrison | Lost 3 allies 23757 | -5/Garrison | Learned Factory security intel 23786 | -5/Garrison | Discovered new exit (range 23) 24002 | -5/Garrison | Discovered new exit (range 21) 24088 | -5/Garrison | Triggered checkpoint 24114 | -5/Garrison | Expanded RIF knowledge: Threat Obfuscation 24125 | -5/Garrison | Garrison Relay disabled 24225 | -5/Garrison | Triggered checkpoint 24257 | -5/Garrison | Garrison Relay disabled 24511 | -5/Garrison | Triggered checkpoint 24532 | -5/Garrison | Garrison Relay disabled 24590 | -5/Garrison | Triggered checkpoint 24645 | -5/Garrison | Entered Factory 24645 | -4/Factory | Accompanied by 4 allies 24645 | -4/Factory | Evolved 2 slots: Utility x2 24787 | -4/Factory | Lost 3 allies 24983 | -4/Factory | Lost 4 parts (1n3u) 25558 | -4/Factory | Discovered new exit (range 8) 25663 | -4/Factory | Identified exit to Garrison 25663 | -4/Factory | Entered Garrison 25781 | -4/Garrison | Assembled breached garrison interior 25845 | -4/Garrison | Discovered new exit (range 48) 25845 | -4/Garrison | Discovered new exit (range 56) 25845 | -4/Garrison | Discovered new exit (range 35) 25869 | -4/Garrison | Garrison Relay disabled 25886 | -4/Garrison | Lost 4 parts (1p1n1u1w) 26028 | -4/Garrison | Expanded RIF knowledge: Hotswap 26122 | -4/Garrison | Garrison Relay disabled 26261 | -4/Garrison | Discovered new exit (range 11) 26261 | -4/Garrison | Discovered new exit (range 68) 26261 | -4/Garrison | Discovered new exit (range 90) 26314 | -4/Garrison | Identified exit to Research 26345 | -4/Garrison | Entered Research 26345 | -3/Research | Accompanied by 1 ally 26345 | -3/Research | Evolved 2 slots: Power x1, Propulsion x1 26556 | -3/Research | Lost 3 parts (1p2n) 26811 | -3/Research | Found Prototype Launcher 26811 | -3/Research | Identified Adv. Micro-nuke Launcher 26851 | -3/Research | Spotted B-86 Titan 27000 | -3/Research | Destroyed B-86 Titan 27135 | -3/Research | Identified exit to Garrison 27135 | -3/Research | Entered Garrison 27135 | -3/Garrison | Accompanied by 2 allies 27190 | -3/Garrison | Garrison Relay disabled 27199 | -3/Garrison | Triggered checkpoint 27299 | -3/Garrison | Triggered checkpoint 27526 | -3/Garrison | System corruption reached 10% 27543 | -3/Garrison | Triggered checkpoint 27627 | -3/Garrison | Garrison Relay disabled 27656 | -3/Garrison | Discovered new exit (range 20) 27675 | -3/Garrison | Triggered checkpoint 27699 | -3/Garrison | Garrison Relay disabled 27757 | -3/Garrison | Rescued a captive Derelict 27841 | -3/Garrison | Discovered new exit (range 11) 27857 | -3/Garrison | Expanded RIF knowledge: Zone Cloak 27949 | -3/Garrison | Triggered checkpoint 27995 | -3/Garrison | Garrison Relay disabled 28136 | -3/Garrison | Garrison Relay disabled 28177 | -3/Garrison | Discovered new exit (range 22) 28411 | -3/Garrison | Entered Research 28411 | -2/Research | Accompanied by 7 allies 28411 | -2/Research | Evolved 2 slots: Utility x2 28441 | -2/Research | Spotted B-90 Cyclops 28514 | -2/Research | Allies destroyed B-90 Cyclops 28540 | -2/Research | Found Quantum Capacitor 28700 | -2/Research | Identified exit to Garrison 28768 | -2/Research | Entered Garrison 28768 | -2/Garrison | Accompanied by 5 allies 28778 | -2/Garrison | Rewired B-75 Beast 28779 | -2/Garrison | Rewired B-90 Cyclops 28812 | -2/Garrison | Triggered checkpoint 28826 | -2/Garrison | Garrison Relay disabled 28916 | -2/Garrison | P-80 Master assimilated allied Warden 9a 28957 | -2/Garrison | Discovered new exit (range 45) 28957 | -2/Garrison | Discovered new exit (range 52) 28957 | -2/Garrison | Discovered new exit (range 37) 28957 | -2/Garrison | Spotted B-90 Cyclops 28964 | -2/Garrison | Triggered checkpoint 28964 | -2/Garrison | Assimilated Cyclops 9b with formatsys_high 28985 | -2/Garrison | Triggered checkpoint 28987 | -2/Garrison | Triggered checkpoint 28990 | -2/Garrison | Triggered checkpoint 29136 | -2/Garrison | Found Unknown Device 29136 | -2/Garrison | Identified Adv. Force Booster 29204 | -2/Garrison | Triggered checkpoint 29221 | -2/Garrison | Garrison Relay disabled 29329 | -2/Garrison | Expanded RIF knowledge: Structural Interface 29363 | -2/Garrison | Triggered checkpoint 29395 | -2/Garrison | Garrison Relay disabled 29516 | -2/Garrison | Triggered checkpoint 29659 | -2/Garrison | Triggered checkpoint 29664 | -2/Garrison | Garrison Relay disabled 29866 | -2/Garrison | Entered Research 29866 | -2/Research | Accompanied by 14 allies 30146 | -2/Research | Spotted B-90 Cyclops 30188 | -2/Research | Allies destroyed B-90 Cyclops 30217 | -2/Research | Lost 3 allies 30499 | -2/Research | Cargo convoy interrupted 30571 | -2/Research | Found Adv. Powered Armor 30574 | -2/Research | Found Adv. Powered Armor 31116 | -2/Research | First assault squad dispatched 31392 | -2/Research | Discovered new exit (range 11) 31412 | -2/Research | Identified exit to Testing 31440 | -2/Research | Entered Testing 31440 | -2/Testing | Accompanied by 5 allies 31464 | -2/Testing | Lost 7 allies 31694 | -2/Testing | Spotted Striker 31732 | -2/Testing | Spotted Striker 31796 | -2/Testing | Found Adv. Micro-nuke Launcher 31900 | -2/Testing | P-80 Master assimilated allied Overseer 9b 31917 | -2/Testing | Destroyed Striker 31928 | -2/Testing | Spotted Alpha 7 31956 | -2/Testing | Garrison activated, responded to threat 31982 | -2/Testing | Destroyed Alpha 7 32140 | -2/Testing | Lost 3 allies 32143 | -2/Testing | Found AEGIS Remote Shield 32196 | -2/Testing | Found Imp. Potential Cannon 32315 | -2/Testing | Scanned by Researcher 32412 | -2/Testing | Found Prototype Ballistic Gun 32500 | -2/Testing | Found Prototype Launcher 32501 | -2/Testing | Identified Z-bomb Delivery System 32541 | -2/Testing | Spotted PP-0SSR9TJW2Y 32551 | -2/Testing | System corruption reached 10% 32556 | -2/Testing | Destroyed PP-0SSR9TJW2Y 32583 | -2/Testing | Found Prototype Processor 32583 | -2/Testing | Identified Exp. Target Analyzer 32928 | -2/Testing | Discovered new exit (range 9) 33307 | -2/Testing | Identified exit to Garrison 33307 | -2/Testing | Entered Garrison 33333 | -2/Garrison | Triggered checkpoint 33398 | -2/Garrison | Garrison Relay disabled 33444 | -2/Garrison | Expanded RIF knowledge: Watcher Feeds 33566 | -2/Garrison | Spotted B-90 Cyclops 33571 | -2/Garrison | Triggered checkpoint 33648 | -2/Garrison | Destroyed B-90 Cyclops 33685 | -2/Garrison | Triggered checkpoint 33712 | -2/Garrison | Triggered checkpoint 33739 | -2/Garrison | Triggered checkpoint 33811 | -2/Garrison | Lost 4 parts (1n3u) 33859 | -2/Garrison | Discovered new exit (range 12) 33901 | -2/Garrison | Triggered checkpoint 33911 | -2/Garrison | Garrison Relay disabled 33970 | -2/Garrison | Expanded RIF knowledge: Zone Cloak 34088 | -2/Garrison | Discovered new exit (range 15) 34119 | -2/Garrison | Garrison Relay disabled 34175 | -2/Garrison | Triggered checkpoint 34211 | -2/Garrison | Triggered checkpoint 34239 | -2/Garrison | Garrison Relay disabled 34429 | -2/Garrison | Garrison Relay disabled 34478 | -2/Garrison | Discovered new exit (range 12) 34500 | -2/Garrison | Entered Access 34500 | -1/Access | Accompanied by 3 allies 34500 | -1/Access | Evolved 2 slots: Propulsion x1, Utility x1 34669 | -1/Access | Fabricated M-13 Machinist (x1) 34733 | -1/Access | Identified Hyp. Multirail 34903 | -1/Access | Found Hellfire Missile Launcher 35382 | -1/Access | System corruption reached 10% 35428 | -1/Access | Spotted B-99 Colossus 35455 | -1/Access | Hijacked Colossus 10a control node with streamctrl_high 35456 | -1/Access | Spotted B-99 Colossus 35459 | -1/Access | Destroyed B-99 Colossus 35480 | -1/Access | Found Unknown Protection 35492 | -1/Access | Destroyed Colossus 10a 35551 | -1/Access | Discovered new exit (range 5) 35557 | *** | Escaped! Last Messages --------------- 35515_ Acquired 10 matter. 35515_ K-01 Serf collects debris. 35517_ Dropped Biometal Heavy Treads. 35517_ K-01 Serf collects debris. 35517_ Acquired Arm. Heavy Treads. 35519_ Acquired 10 matter. 35519_ K-01 Serf collects debris. 35524_ >> Watcher Feeds: Established visual feed link with W-44 Eye. 35526_ K-01 Serf collects debris. 35532_ Main Access Shell breached. 35543_ U-05 Engineer lays Concrete. 35549_ System corrupted: Matter fused (-7). 35549_ U-05 Engineer lays Concrete. 35550_ R-10 Processor collects Unknown Energy Gun. 35550_ U-05 Engineer lays Concrete. 35551_ EXIT=FOUND 35551_ U-05 Engineer lays Concrete. 35553_ R-10 Processor collects Unknown Processor. 35553_ U-05 Engineer builds a Wall. 35556_ >> Watcher Feeds: Feed link from W-44 Eye lost. Map ----- +----------------------------------------------------+ | ????# # ########???????# #???????????? | | ????# # ####???????????# #???????????? | | ############/###[ ########???????# #???????????? | | %%! #???????# #???????????? | | *! % % #???????# #???????????? | | ! = ! #???????# #???????????? | | %=! ##??????# #???????????? | | #####+##############"|#% "#???####+###?????????? | | #??????# *% "#???#= ! #?????????? | | #??????# "###?# #?????????? | | = #??????# #?# ########### | | #??????# #?# # | | [ !!! #??????# #?# # | | !!! #??????#= = #?# # | | !! #??????# % #?# + | | ??????? #??????# #?# # | | ??????? #??????# #?# # | | ????????? #??????# ""#?# ! + | | ????????? #??????#"" "???# ########### | | ??????????? #????????" ""???# ]#?????????? | | ???????????##??????#"" ""#?# #?????????? | | ???????????????????# #?# #?????????? | | ???????????????????# " """ #?###+####?????????? | | ???????????????????# " " #???# #?############ | | ???????????????????# " "" " #???# #?# | | ???????????????????# " "@ " #???# #?# | | ???????????????????# " "? #???# ### | | ???????????????????# """"""? #???# + | | ???????????????????# ????????#???##### | | ???????????????????# ????????????????# | | ???????????????????"""????????????????############ | | ?????????????????????????????????????????????????? | | ?????????????????????????????????????????????????? | | ?????????????????????????????????????????????????? | | ?????????????????????????????????????????????????? | | ?????????????????????????????????????????????????? | | ?????????????????????????????????????????????????? | | ?????????????????????????????????????????????????? | | ?????????????????????????????????????????Y???????? | | ?????????????????????????????????????????????????? | | ?????????????????????????????????????????????????? | | ?????????????????????????????????????????????????? | | ?????????????????????????????????????????????????? | | ?????????????????????????????????????????????????? | | ?????????????????????????????????????????????????? | | ?????????????????????????????????????????????????? | | ?????????????????????????????????????????????????? | | ?????????????????????????????????????????????????? | | ?????????????????????????????????????????????????? | | ?????????????????????????????????????????????????? | +----------------------------------------------------+ Best States ------------- Heat Dissipation 128 Coolant Potential 100 Energy Generation 83 Energy Capacity 825 Matter Stores 300 Matter Capacity 300 Sight Range 24 Terrain Scan Range 20 Terrain Scan Density 10 Power Amplification 40 Additional Mass Support 20 Base Temperature (-) 100 Armor Coverage 1600 Resistance: TH 15 Resistance: EM 90 Utility Shielding 66 Weapon Shielding 33 Weapon Cycling 25 Phase Shifting 10 Evasion (%) 50 Recoil Reduction 7 Particle Charging 25 Offensive Hacking 20 Defensive Hacking 10 Relay Coupler Types 6 Relay Coupler Value 174 Authchip Count 1 Trap Extractor Capacity 8 Item Schematics ----------------- Imp. Utility Shielding | -8/Materials | Scanalyzed Cld. Gravmag System | -2/Testing | Archive Adv. Quantum Shading Machine | -2/Testing | Archive Centrium Light Armor Plating | -2/Testing | Archive Adv. KE Penetrator | -2/Testing | Archive Exp. Myomer Leg | -2/Testing | Archive Stealth Drone Bay | -2/Testing | Archive Cld. Antigrav System | -2/Testing | Archive Enh. Multireflex Exoskeleton | -2/Testing | Archive Robot Schematics ------------------ M-13 Machinist | -10/Materials | Hacked C-65 Expert | -2/Testing | Archive X-87 Electro | -2/Testing | Archive Fabricated ------------ A-02 Transporter | x1 | -7/Factory | Preloaded Antimatter Reactor | x2 | -7/Factory | Preloaded M-13 Machinist | x1 | -1/Access | Authchip Repaired ---------- Hvy. Particle Cannon | 6% | -8/Materials Hrd. Medium Armor Plating | 9% | -8/Materials Imp. Medium Treads | 36% | -8/Materials Hvy. Particle Cannon | 14% | -8/Materials Alien Tech Used ----------------- None Achievements -------------- None Challenges ------------ None Game ------ Seed ChargeArcSubcomponent Manual? 0 Play Time 04:06:25 Cumulative 707.4 hours Start 2025.05.17 @ 07:53:48 End 2025.05.18 @ 10:03:50 Sessions 11 Manual Loads 0 Difficulty Rogue Special Mode None Game No. 372 Rogue 372 Adventurer 0 Explorer 0 Win Type 0 Total 58 Types 39/4/5/2/1/1/3/1/1/1 Lore% 92 Gallery% 84 Achievement% 91 Wizard Run 0 Options --------- Layout 0 ASCII 0 Keyboard 1 Movement Numpad Keybinds 0 Fullscreen 2 Font 18/SmallcapsGlow Map View 76x50 Zoom Use 0% Tactical HUD 1 Map Filters NONE Filters NONE Steam 1 RUN: 1b99d491-94da-4108-b293-7a4c45abc9cf